Workbook

Sheet TDSheet
B1: Частное торговое унитарное предприятие "Домина"
B2: 223043 Минская обл., Минский р-н, Папернянский с/совет, д.Цнянка, ул.Сиреневая д.12А-1
B3: Тел.(17) 221-70-78 | C3: НАЖМИТЕ! Разрешить редактирование. Включите макросы
B4: Наименование | C4: Код | D4: Артикул | E4: Ед. изм. | F4: Фото | H4: Цена прейск-я без НДС | I4: Скидка общая | J4: Скидка инд. | K4: Цена со скидкой без НДС | L4: Заказ | M4: Стоимость | N4: Штрихкод
B5: Итого | L5: =SUBTOTAL(9,L6:L3139) -> 0 | M5: =SUBTOTAL(9,M6:M3139) -> 0
B6: Полипропилен | L6: =SUBTOTAL(9,L7:L693) -> 0 | M6: =SUBTOTAL(9,M7:M693) -> 0
B7: Valfex серый | L7: =SUBTOTAL(9,L8:L297) -> 0 | M7: =SUBTOTAL(9,M8:M297) -> 0
B8: PRO Труба арм. стекловолокном PN 20 ф20х2.8 (140), СЕРАЯ | C8: 22212820 | D8: VLF 10105020Г-PRO | E8: м | H8: 1.34 | K8: =ROUND(ROUND(ROUND(H8/100*(100-I8)/100*(100-J8), 2)/1.2, 2)*1.2, 2) -> 1.34 | M8: =ROUND(ROUND(ROUND(K8/1.2, 2)*L8, 2)*1.2, 2) -> 0 | N8: 4680086741378
B9: PRO Труба арм. стекловолокном PN 20 ф25х3.5 (100), СЕРАЯ | C9: 22212821 | D9: VLF 10105025Г-PRO | E9: м | H9: 1.99 | K9: =ROUND(ROUND(ROUND(H9/100*(100-I9)/100*(100-J9), 2)/1.2, 2)*1.2, 2) -> 1.99 | M9: =ROUND(ROUND(ROUND(K9/1.2, 2)*L9, 2)*1.2, 2) -> 0 | N9: 4680086741385
B10: PRO Труба арм. стекловолокном PN 20 ф32х4.4 (60 Штанга 4 местра), СЕРАЯ Знак ТР 10105032Г-PRO | C10: 22212856 | D10: 10105032Г-PRO | E10: шт | H10: 11.08 | K10: =ROUND(ROUND(ROUND(H10/100*(100-I10)/100*(100-J10), 2)/1.2, 2)*1.2, 2) -> 11.08 | M10: =ROUND(ROUND(ROUND(K10/1.2, 2)*L10, 2)*1.2, 2) -> 0
B11: PRO Труба арм. стекловолокном PN 20 ф32х4.4 (60), СЕРАЯ | C11: 22212822 | D11: VLF 10105032Г-PRO | E11: м | H11: 3.17 | K11: =ROUND(ROUND(ROUND(H11/100*(100-I11)/100*(100-J11), 2)/1.2, 2)*1.2, 2) -> 3.17 | M11: =ROUND(ROUND(ROUND(K11/1.2, 2)*L11, 2)*1.2, 2) -> 0 | N11: 4680086741392
B12: PRO Труба армированная стекловолокном SDR 7,4 (PN 20) ф20х2,8 (70 штанга) ШТАНГА 2 МЕТРА СЕРАЯ Знак ТР 101050202Г-PRO | C12: 22212857 | D12: 101050202Г-PRO | E12: шт | H12: 2.37 | K12: =ROUND(ROUND(ROUND(H12/100*(100-I12)/100*(100-J12), 2)/1.2, 2)*1.2, 2) -> 2.38 | M12: =ROUND(ROUND(ROUND(K12/1.2, 2)*L12, 2)*1.2, 2) -> 0
B13: PRO Труба армированная стекловолокном SDR 7,4 (PN 20) ф20х2,8 (70) ШТАНГА 2 МЕТРА СЕРАЯ | C13: 22212823 | D13: VLF 101050202Г-PRO | E13: м | H13: 1.34 | K13: =ROUND(ROUND(ROUND(H13/100*(100-I13)/100*(100-J13), 2)/1.2, 2)*1.2, 2) -> 1.34 | M13: =ROUND(ROUND(ROUND(K13/1.2, 2)*L13, 2)*1.2, 2) -> 0 | N13: 4680086741408
B14: PRO Труба армированная стекловолокном SDR 7,4 (PN 20) ф25х3,5 (50 штанга) ШТАНГА 2 МЕТРА СЕРАЯ Знак ТР 101050252Г-PRO | C14: 22212858 | D14: 101050252Г-PRO | E14: шт | H14: 3.5 | K14: =ROUND(ROUND(ROUND(H14/100*(100-I14)/100*(100-J14), 2)/1.2, 2)*1.2, 2) -> 3.5 | M14: =ROUND(ROUND(ROUND(K14/1.2, 2)*L14, 2)*1.2, 2) -> 0
B15: PRO Труба армированная стекловолокном SDR 7,4 (PN 20) ф25х3,5 (50) ШТАНГА 2 МЕТРА СЕРАЯ | C15: 22212824 | D15: VLF 101050252Г-PRO | E15: м | H15: 1.91 | K15: =ROUND(ROUND(ROUND(H15/100*(100-I15)/100*(100-J15), 2)/1.2, 2)*1.2, 2) -> 1.91 | M15: =ROUND(ROUND(ROUND(K15/1.2, 2)*L15, 2)*1.2, 2) -> 0 | N15: 4680086741415
B16: Заглушка 20 (750/125) (Valfex) СЕРАЯ | C16: 22203154 | D16: VLF ПП Заглушка 20 | E16: шт | H16: 0.1 | K16: =ROUND(ROUND(ROUND(H16/100*(100-I16)/100*(100-J16), 2)/1.2, 2)*1.2, 2) -> 0.1 | M16: =ROUND(ROUND(ROUND(K16/1.2, 2)*L16, 2)*1.2, 2) -> 0 | N16: 4640017899714
B17: Заглушка 25 (500/100) (Valfex) СЕРАЯ | C17: 22203175 | D17: VLF ПП Заглушка 25 | E17: шт | H17: 0.22 | K17: =ROUND(ROUND(ROUND(H17/100*(100-I17)/100*(100-J17), 2)/1.2, 2)*1.2, 2) -> 0.22 | M17: =ROUND(ROUND(ROUND(K17/1.2, 2)*L17, 2)*1.2, 2) -> 0 | N17: 4640017899738
B18: Заглушка 32 (250/50) (Valfex) СЕРАЯ | C18: 22203155 | D18: VLF ПП Заглушка 32 | E18: шт | H18: 0.32 | K18: =ROUND(ROUND(ROUND(H18/100*(100-I18)/100*(100-J18), 2)/1.2, 2)*1.2, 2) -> 0.32 | M18: =ROUND(ROUND(ROUND(K18/1.2, 2)*L18, 2)*1.2, 2) -> 0 | N18: 4640017899752
B19: Заглушка 40 (150/25) (Valfex) СЕРАЯ | C19: 22208167 | D19: VLF ПП Заглушка 40 | E19: шт | H19: 0.64 | K19: =ROUND(ROUND(ROUND(H19/100*(100-I19)/100*(100-J19), 2)/1.2, 2)*1.2, 2) -> 0.64 | M19: =ROUND(ROUND(ROUND(K19/1.2, 2)*L19, 2)*1.2, 2) -> 0 | N19: 4680019383019
B20: Заглушка 50 (90/15) (Valfex) СЕРАЯ | C20: 22206207 | D20: VLF ПП Заглушка 50 | E20: шт | H20: 1.08 | K20: =ROUND(ROUND(ROUND(H20/100*(100-I20)/100*(100-J20), 2)/1.2, 2)*1.2, 2) -> 1.08 | M20: =ROUND(ROUND(ROUND(K20/1.2, 2)*L20, 2)*1.2, 2) -> 0 | N20: 4680019383019
B21: Заглушка 63 (60/10) (Valfex) СЕРАЯ | C21: 22207323 | D21: VLF ПП Заглушка 63 | E21: шт | H21: 1.78 | K21: =ROUND(ROUND(ROUND(H21/100*(100-I21)/100*(100-J21), 2)/1.2, 2)*1.2, 2) -> 1.78 | M21: =ROUND(ROUND(ROUND(K21/1.2, 2)*L21, 2)*1.2, 2) -> 0 | N21: 4680019383033
B22: Заглушка резьбовая 20х1/2 (1000/250) (Valfex) СЕРАЯ | C22: 22205861 | D22: VLF ПП Заглушка 20х1/2 | E22: шт | H22: 0.09 | K22: =ROUND(ROUND(ROUND(H22/100*(100-I22)/100*(100-J22), 2)/1.2, 2)*1.2, 2) -> 0.1 | M22: =ROUND(ROUND(ROUND(K22/1.2, 2)*L22, 2)*1.2, 2) -> 0 | N22: 4640017899776
B23: Коллектор универсальный с отсечными кранами 40х20 на 4 выходов (7/1) (Valfex) ЗАВОД ВАЛФ-РУС СЕРЫЙ | C23: 22210112 | D23: VLF 101134004Г | E23: шт | H23: 19.23 | K23: =ROUND(ROUND(ROUND(H23/100*(100-I23)/100*(100-J23), 2)/1.2, 2)*1.2, 2) -> 19.24 | M23: =ROUND(ROUND(ROUND(K23/1.2, 2)*L23, 2)*1.2, 2) -> 0 | N23: 4680086707558
B24: Коллектор универсальный с отсечными кранами 40х20 на 6 выходов (6/1) (Valfex) ЗАВОД ВАЛФ-РУС СЕРЫЙ | C24: 22210115 | D24: VLF 101134006Г | E24: шт | H24: 27.9 | K24: =ROUND(ROUND(ROUND(H24/100*(100-I24)/100*(100-J24), 2)/1.2, 2)*1.2, 2) -> 27.9 | M24: =ROUND(ROUND(ROUND(K24/1.2, 2)*L24, 2)*1.2, 2) -> 0 | N24: 4680086707527
B25: Комбинированный ниппель для соединения PPR-PE труб 20х16 (200/50) (Vаlfex) СЕРЫЙ "ВАЛФ-РУС" | C25: 22210431 | D25: VLF Нип комб. 20х16 сер | E25: шт | H25: 4.75 | K25: =ROUND(ROUND(ROUND(H25/100*(100-I25)/100*(100-J25), 2)/1.2, 2)*1.2, 2) -> 4.75 | M25: =ROUND(ROUND(ROUND(K25/1.2, 2)*L25, 2)*1.2, 2) -> 0 | N25: 4680086708425
B26: Комплект настенный для смесителя 20х1/2" в.р. (20/5) (Valfex) СЕРЫЙ | C26: 22202880 | D26: VLF ПП Планка для смес20х1/2 | E26: шт | H26: 3.95 | K26: =ROUND(ROUND(ROUND(H26/100*(100-I26)/100*(100-J26), 2)/1.2, 2)*1.2, 2) -> 3.95 | M26: =ROUND(ROUND(ROUND(K26/1.2, 2)*L26, 2)*1.2, 2) -> 0 | N26: 4640017897017
B27: Комплект настенный для смесителя 20х1/2" н.р. (20/5) (Valfex) СЕРЫЙ | C27: 22206378 | D27: VLF ПП Планка для смес20х1/2 н | E27: шт | H27: 5.12 | K27: =ROUND(ROUND(ROUND(H27/100*(100-I27)/100*(100-J27), 2)/1.2, 2)*1.2, 2) -> 5.12 | M27: =ROUND(ROUND(ROUND(K27/1.2, 2)*L27, 2)*1.2, 2) -> 0 | N27: 4680019388793
B28: Комплект настенный для смесителя 25х1/2" в.р. (12/3) (Valfex) СЕРЫЙ | C28: 22211482 | D28: VLF ПП Планка для смес25х1/2 с | E28: шт | H28: 4.63 | K28: =ROUND(ROUND(ROUND(H28/100*(100-I28)/100*(100-J28), 2)/1.2, 2)*1.2, 2) -> 4.63 | M28: =ROUND(ROUND(ROUND(K28/1.2, 2)*L28, 2)*1.2, 2) -> 0 | N28: 4640017897031
B29: Комплект настенный для смесителя 25х1/2" н.р. (12/3) (Valfex) СЕРЫЙ | C29: 22206379 | D29: VLF ПП Планка для смес25х1/2 н | E29: шт | H29: 6.16 | K29: =ROUND(ROUND(ROUND(H29/100*(100-I29)/100*(100-J29), 2)/1.2, 2)*1.2, 2) -> 6.16 | M29: =ROUND(ROUND(ROUND(K29/1.2, 2)*L29, 2)*1.2, 2) -> 0 | N29: 4680019389875
B30: Комплект настенный для смесителя 25х3/4" н.р. (12/3) (Valfex) СЕРЫЙ | C30: 22206380 | D30: VLF ПП Планка для смес25х3/4 н | E30: шт | H30: 7.52 | K30: =ROUND(ROUND(ROUND(H30/100*(100-I30)/100*(100-J30), 2)/1.2, 2)*1.2, 2) -> 7.52 | M30: =ROUND(ROUND(ROUND(K30/1.2, 2)*L30, 2)*1.2, 2) -> 0 | N30: 4680019388779
B31: Кран шаровой VALFEX OPTIMA 20 (60/15) - МЕТАЛЛ.ШАР СЕРЫЙ | C31: 22206710 | D31: VLF ПП Кран шар 20 сер | E31: шт | H31: 1.75 | K31: =ROUND(ROUND(ROUND(H31/100*(100-I31)/100*(100-J31), 2)/1.2, 2)*1.2, 2) -> 1.75 | M31: =ROUND(ROUND(ROUND(K31/1.2, 2)*L31, 2)*1.2, 2) -> 0 | N31: 4660042574240
B32: Кран шаровой VALFEX OPTIMA 25 (40/10) - МЕТАЛЛ.ШАР СЕРЫЙ | C32: 22204006 | D32: VLF ПП Кран шар 25 сер | E32: шт | H32: 2.36 | K32: =ROUND(ROUND(ROUND(H32/100*(100-I32)/100*(100-J32), 2)/1.2, 2)*1.2, 2) -> 2.36 | M32: =ROUND(ROUND(ROUND(K32/1.2, 2)*L32, 2)*1.2, 2) -> 0 | N32: 4660042574264
B33: Кран шаровой VALFEX OPTIMA 32 (24/6) - МЕТАЛЛ.ШАР СЕРЫЙ | C33: 22204007 | D33: VLF ПП Кран шар 32 сер | E33: шт | H33: 3.07 | K33: =ROUND(ROUND(ROUND(H33/100*(100-I33)/100*(100-J33), 2)/1.2, 2)*1.2, 2) -> 3.07 | M33: =ROUND(ROUND(ROUND(K33/1.2, 2)*L33, 2)*1.2, 2) -> 0 | N33: 4660042574288
B34: Кран шаровой VALFEX OPTIMA 40 (16/4) - МЕТАЛЛ.ШАР СЕРЫЙ (10103080/130519/0025828/1) | C34: 22206711 | D34: VLF ПП Кран шар 40 сер opt | E34: шт | H34: 6.17 | K34: =ROUND(ROUND(ROUND(H34/100*(100-I34)/100*(100-J34), 2)/1.2, 2)*1.2, 2) -> 6.17 | M34: =ROUND(ROUND(ROUND(K34/1.2, 2)*L34, 2)*1.2, 2) -> 0 | N34: 4660042574301
B35: Кран шаровой VALFEX OPTIMA 50 (8/2) - МЕТАЛЛ.ШАР СЕРЫЙ (10103080/130519/0025828/1) | C35: 22206251 | D35: VLF ПП Кран шар 50 сер opt | E35: шт | H35: 10.33 | K35: =ROUND(ROUND(ROUND(H35/100*(100-I35)/100*(100-J35), 2)/1.2, 2)*1.2, 2) -> 10.33 | M35: =ROUND(ROUND(ROUND(K35/1.2, 2)*L35, 2)*1.2, 2) -> 0 | N35: 4660042574325
B36: Кран шаровой VALFEX OPTIMA 63 (5/1) - МЕТАЛЛ.ШАР СЕРЫЙ | C36: 22206429 | D36: VLF ПП Кран шар 63 сер opt | E36: шт | H36: 14.09 | K36: =ROUND(ROUND(ROUND(H36/100*(100-I36)/100*(100-J36), 2)/1.2, 2)*1.2, 2) -> 14.09 | M36: =ROUND(ROUND(ROUND(K36/1.2, 2)*L36, 2)*1.2, 2) -> 0 | N36: 4660042574349
B37: Кран шаровой 20 (60/15) (Valfex) ЗАВОД ВАЛФ-РУС СЕРЫЙ | C37: 22202812 | D37: VLF ПП Кран шар 20 | E37: шт | H37: 4.06 | K37: =ROUND(ROUND(ROUND(H37/100*(100-I37)/100*(100-J37), 2)/1.2, 2)*1.2, 2) -> 4.06 | M37: =ROUND(ROUND(ROUND(K37/1.2, 2)*L37, 2)*1.2, 2) -> 0 | N37: 4640017899394
B38: Кран шаровой 25 (40/10) (Valfex) ЗАВОД ВАЛФ-РУС СЕРЫЙ | C38: 22202884 | D38: VLF ПП Кран шар 25 | E38: шт | H38: 6.54 | K38: =ROUND(ROUND(ROUND(H38/100*(100-I38)/100*(100-J38), 2)/1.2, 2)*1.2, 2) -> 6.54 | M38: =ROUND(ROUND(ROUND(K38/1.2, 2)*L38, 2)*1.2, 2) -> 0 | N38: 4640017899417
B39: Кран шаровой 25 полнопроходной с двусторонним разьемным соединением (20/5) (Valfex) ЗАВОД ВАЛФ-РУС СЕРЫЙ | C39: 22210134 | D39: VLF 20246025Г | E39: шт | H39: 20.58 | K39: =ROUND(ROUND(ROUND(H39/100*(100-I39)/100*(100-J39), 2)/1.2, 2)*1.2, 2) -> 20.58 | M39: =ROUND(ROUND(ROUND(K39/1.2, 2)*L39, 2)*1.2, 2) -> 0 | N39: 4680086707312
B40: Кран шаровой 25 полнопроходной с односторонним разьемным соединением (32/8) (Valfex) ЗАВОД ВАЛФ-РУС СЕРЫЙ | C40: 22210135 | D40: VLF 20244025Г | E40: шт | H40: 14.64 | K40: =ROUND(ROUND(ROUND(H40/100*(100-I40)/100*(100-J40), 2)/1.2, 2)*1.2, 2) -> 14.64 | M40: =ROUND(ROUND(ROUND(K40/1.2, 2)*L40, 2)*1.2, 2) -> 0 | N40: 4680086707206
B41: Кран шаровой 32 (24/6) (Valfex) ЗАВОД ВАЛФ-РУС СЕРЫЙ | C41: 22202813 | D41: VLF ПП Кран шар 32 | E41: шт | H41: 9.66 | K41: =ROUND(ROUND(ROUND(H41/100*(100-I41)/100*(100-J41), 2)/1.2, 2)*1.2, 2) -> 9.66 | M41: =ROUND(ROUND(ROUND(K41/1.2, 2)*L41, 2)*1.2, 2) -> 0 | N41: 4640017899431
B42: Кран шаровой 40 (16/4) (Valfex) ЗАВОД ВАЛФ-РУС СЕРЫЙ | C42: 22203156 | D42: VLF ПП Кран шар 40 | E42: шт | H42: 20.26 | K42: =ROUND(ROUND(ROUND(H42/100*(100-I42)/100*(100-J42), 2)/1.2, 2)*1.2, 2) -> 20.26 | M42: =ROUND(ROUND(ROUND(K42/1.2, 2)*L42, 2)*1.2, 2) -> 0 | N42: 4680019383170
B43: Кран шаровой 50 (8/2) (Valfex) ЗАВОД ВАЛФ-РУС СЕРЫЙ | C43: 22205631 | D43: VLF ПП Кран шар 50 | E43: шт | H43: 33.49 | K43: =ROUND(ROUND(ROUND(H43/100*(100-I43)/100*(100-J43), 2)/1.2, 2)*1.2, 2) -> 33.49 | M43: =ROUND(ROUND(ROUND(K43/1.2, 2)*L43, 2)*1.2, 2) -> 0 | N43: 4680019383194
B44: Кран шаровой 63 (5/1) (Valfex) ЗАВОД ВАЛФ-РУС СЕРЫЙ | C44: 22206443 | D44: VLF ПП Кран шар 63 | E44: шт | H44: 55.69 | K44: =ROUND(ROUND(ROUND(H44/100*(100-I44)/100*(100-J44), 2)/1.2, 2)*1.2, 2) -> 55.69 | M44: =ROUND(ROUND(ROUND(K44/1.2, 2)*L44, 2)*1.2, 2) -> 0 | N44: 4680019383217
B45: Кран шаровой для радиатора прямой 20х1/2" (60/10) (Valfex) ЗАВОД ВАЛФ-РУС СЕРЫЙ | C45: 22203178 | D45: VLF ПП кран рад 20х1/2 сер | E45: шт | H45: 8.2 | K45: =ROUND(ROUND(ROUND(H45/100*(100-I45)/100*(100-J45), 2)/1.2, 2)*1.2, 2) -> 8.2 | M45: =ROUND(ROUND(ROUND(K45/1.2, 2)*L45, 2)*1.2, 2) -> 0 | N45: 4640017897482
B46: Кран шаровой для радиатора прямой 25х3/4" (50/10) (Valfex) ЗАВОД ВАЛФ-РУС СЕРЫЙ | C46: 22203623 | D46: VLF ПП кран рад 25х3/4 | E46: шт | H46: 10.43 | K46: =ROUND(ROUND(ROUND(H46/100*(100-I46)/100*(100-J46), 2)/1.2, 2)*1.2, 2) -> 10.43 | M46: =ROUND(ROUND(ROUND(K46/1.2, 2)*L46, 2)*1.2, 2) -> 0 | N46: 4640017897499
B47: Кран шаровой для радиатора угловой 20х1/2" (60/10) (Valfex) ЗАВОД ВАЛФ-РУС СЕРЫЙ | C47: 22202886 | D47: VLF ПП кран угл для рад 20х1/2 | E47: шт | H47: 8.24 | K47: =ROUND(ROUND(ROUND(H47/100*(100-I47)/100*(100-J47), 2)/1.2, 2)*1.2, 2) -> 8.24 | M47: =ROUND(ROUND(ROUND(K47/1.2, 2)*L47, 2)*1.2, 2) -> 0 | N47: 4640017897505
B48: Кран шаровой для радиатора угловой 25х1/2" (40/10) (Valfex) ЗАВОД ВАЛФ-РУС СЕРЫЙ | C48: 22206913 | D48: VLF ПП кран угл для рад 25х1/2 | E48: шт | H48: 9.01 | K48: =ROUND(ROUND(ROUND(H48/100*(100-I48)/100*(100-J48), 2)/1.2, 2)*1.2, 2) -> 9.01 | M48: =ROUND(ROUND(ROUND(K48/1.2, 2)*L48, 2)*1.2, 2) -> 0 | N48: 4680019383309
B49: Кран шаровой для радиатора угловой 25х3/4" (40/10) (Valfex) ЗАВОД ВАЛФ-РУС СЕРЫЙ | C49: 22202814 | D49: VLF ПП кран угл для рад 25х3/4 | E49: шт | H49: 10.47 | K49: =ROUND(ROUND(ROUND(H49/100*(100-I49)/100*(100-J49), 2)/1.2, 2)*1.2, 2) -> 10.48 | M49: =ROUND(ROUND(ROUND(K49/1.2, 2)*L49, 2)*1.2, 2) -> 0 | N49: 4640017897512
B50: Кран шаровый для радиатора прямой 25х1/2" (50/10) (Valfex) ЗАВОД ВАЛФ-РУС СЕРЫЙ | C50: 22209758 | D50: VLF ПП кран рад 25х1/2 | E50: шт | H50: 8.79 | K50: =ROUND(ROUND(ROUND(H50/100*(100-I50)/100*(100-J50), 2)/1.2, 2)*1.2, 2) -> 8.8 | M50: =ROUND(ROUND(ROUND(K50/1.2, 2)*L50, 2)*1.2, 2) -> 0 | N50: 4680019383293
B51: Крестовина 20 (200/50) (Valfex) СЕРАЯ | C51: 22203597 | D51: VLF ПП Крест 20 | E51: шт | H51: 0.76 | K51: =ROUND(ROUND(ROUND(H51/100*(100-I51)/100*(100-J51), 2)/1.2, 2)*1.2, 2) -> 0.76 | M51: =ROUND(ROUND(ROUND(K51/1.2, 2)*L51, 2)*1.2, 2) -> 0 | N51: 4640017899813
B52: Крестовина 25 (125/25) (Valfex) СЕРАЯ | C52: 22203598 | D52: VLF ПП Крест 25 | E52: шт | H52: 0.88 | K52: =ROUND(ROUND(ROUND(H52/100*(100-I52)/100*(100-J52), 2)/1.2, 2)*1.2, 2) -> 0.88 | M52: =ROUND(ROUND(ROUND(K52/1.2, 2)*L52, 2)*1.2, 2) -> 0 | N52: 4640017899837
B53: Крестовина 32 (60/15) (Valfex) СЕРАЯ | C53: 22203599 | D53: VLF ПП Крест 32 | E53: шт | H53: 1.32 | K53: =ROUND(ROUND(ROUND(H53/100*(100-I53)/100*(100-J53), 2)/1.2, 2)*1.2, 2) -> 1.32 | M53: =ROUND(ROUND(ROUND(K53/1.2, 2)*L53, 2)*1.2, 2) -> 0 | N53: 4640017899851
B54: Муфта 20 (500/125) (Valfex) СЕРАЯ | C54: 22202800 | D54: VLF ПП Муфта 20 | E54: шт | H54: 0.13 | K54: =ROUND(ROUND(ROUND(H54/100*(100-I54)/100*(100-J54), 2)/1.2, 2)*1.2, 2) -> 0.13 | M54: =ROUND(ROUND(ROUND(K54/1.2, 2)*L54, 2)*1.2, 2) -> 0 | N54: 4640017899875
B55: Муфта 25 (300/75) (Valfex) СЕРАЯ | C55: 22202804 | D55: VLF ПП Муфта 25 | E55: шт | H55: 0.2 | K55: =ROUND(ROUND(ROUND(H55/100*(100-I55)/100*(100-J55), 2)/1.2, 2)*1.2, 2) -> 0.2 | M55: =ROUND(ROUND(ROUND(K55/1.2, 2)*L55, 2)*1.2, 2) -> 0 | N55: 4640017899899
B56: Муфта 32 (150/30) (Valfex) СЕРАЯ | C56: 22202890 | D56: VLF ПП Муфта 32 | E56: шт | H56: 0.37 | K56: =ROUND(ROUND(ROUND(H56/100*(100-I56)/100*(100-J56), 2)/1.2, 2)*1.2, 2) -> 0.37 | M56: =ROUND(ROUND(ROUND(K56/1.2, 2)*L56, 2)*1.2, 2) -> 0 | N56: 4640017899912
B57: Муфта 40 (100/20) (Valfex) СЕРАЯ | C57: 22202891 | D57: VLF ПП Муфта 40 | E57: шт | H57: 0.64 | K57: =ROUND(ROUND(ROUND(H57/100*(100-I57)/100*(100-J57), 2)/1.2, 2)*1.2, 2) -> 0.64 | M57: =ROUND(ROUND(ROUND(K57/1.2, 2)*L57, 2)*1.2, 2) -> 0 | N57: 4680019383897
B58: Муфта 50 (60/15) (Valfex) СЕРАЯ | C58: 22205632 | D58: VLF ПП Муфта 50 | E58: шт | H58: 1 | K58: =ROUND(ROUND(ROUND(H58/100*(100-I58)/100*(100-J58), 2)/1.2, 2)*1.2, 2) -> 1 | M58: =ROUND(ROUND(ROUND(K58/1.2, 2)*L58, 2)*1.2, 2) -> 0 | N58: 4640017899936
B59: Муфта 63 (35/7) (Valfex) СЕРАЯ | C59: 22206712 | D59: VLF ПП Муфта 63 сер | E59: шт | H59: 1.55 | K59: =ROUND(ROUND(ROUND(H59/100*(100-I59)/100*(100-J59), 2)/1.2, 2)*1.2, 2) -> 1.55 | M59: =ROUND(ROUND(ROUND(K59/1.2, 2)*L59, 2)*1.2, 2) -> 0 | N59: 4680019383910
B60: Муфта комб.разъём.(американка) с внутренней резьбой 20х1" (100/25) (Valfex) СЕРАЯ | C60: 22204513 | D60: VLF ПП Америк 20х1 вн | E60: шт | H60: 7.48 | K60: =ROUND(ROUND(ROUND(H60/100*(100-I60)/100*(100-J60), 2)/1.2, 2)*1.2, 2) -> 7.48 | M60: =ROUND(ROUND(ROUND(K60/1.2, 2)*L60, 2)*1.2, 2) -> 0 | N60: 4640017898465
B61: Муфта комб.разъём.(американка) с внутренней резьбой 20х1/2" (200/25) (Valfex) СЕРАЯ | C61: 22202892 | D61: VLF ПП Америк 20х1/2 вн | E61: шт | H61: 3.5 | K61: =ROUND(ROUND(ROUND(H61/100*(100-I61)/100*(100-J61), 2)/1.2, 2)*1.2, 2) -> 3.5 | M61: =ROUND(ROUND(ROUND(K61/1.2, 2)*L61, 2)*1.2, 2) -> 0 | N61: 4640017898489
B62: Муфта комб.разъём.(американка) с внутренней резьбой 20х3/4" (200/25) (Valfex) СЕРАЯ | C62: 22203179 | D62: VLF ПП Америк 20х3/4 вн | E62: шт | H62: 3.68 | K62: =ROUND(ROUND(ROUND(H62/100*(100-I62)/100*(100-J62), 2)/1.2, 2)*1.2, 2) -> 3.68 | M62: =ROUND(ROUND(ROUND(K62/1.2, 2)*L62, 2)*1.2, 2) -> 0 | N62: 4680019383330
B63: Муфта комб.разъём.(американка) с внутренней резьбой 25x1" (100/25) (Valfex) СЕРАЯ | C63: 22203772 | D63: VLF ПП Америк 25х1 вн | E63: шт | H63: 6.02 | K63: =ROUND(ROUND(ROUND(H63/100*(100-I63)/100*(100-J63), 2)/1.2, 2)*1.2, 2) -> 6.02 | M63: =ROUND(ROUND(ROUND(K63/1.2, 2)*L63, 2)*1.2, 2) -> 0 | N63: 4680019383460
B64: Муфта комб.разъём.(американка) с внутренней резьбой 25x1/2" (125/25) (Valfex) СЕРАЯ | C64: 22203157 | D64: VLF ПП Америк 25х1/2 вн | E64: шт | H64: 5.52 | K64: =ROUND(ROUND(ROUND(H64/100*(100-I64)/100*(100-J64), 2)/1.2, 2)*1.2, 2) -> 5.52 | M64: =ROUND(ROUND(ROUND(K64/1.2, 2)*L64, 2)*1.2, 2) -> 0 | N64: 4640017898526
B65: Муфта комб.разъём.(американка) с внутренней резьбой 25x3/4" (100/25) (Valfex) СЕРАЯ | C65: 22202798 | D65: VLF ПП Америк 25х3/4 вн | E65: шт | H65: 5.58 | K65: =ROUND(ROUND(ROUND(H65/100*(100-I65)/100*(100-J65), 2)/1.2, 2)*1.2, 2) -> 5.58 | M65: =ROUND(ROUND(ROUND(K65/1.2, 2)*L65, 2)*1.2, 2) -> 0 | N65: 4640017898564
B66: Муфта комб.разъём.(американка) с внутренней резьбой 32x1 1/4" (60/15) (Valfex) СЕРАЯ | C66: 22204861 | D66: VLF ПП Америк 32х1 1/4 вн | E66: шт | H66: 8.34 | K66: =ROUND(ROUND(ROUND(H66/100*(100-I66)/100*(100-J66), 2)/1.2, 2)*1.2, 2) -> 8.34 | M66: =ROUND(ROUND(ROUND(K66/1.2, 2)*L66, 2)*1.2, 2) -> 0 | N66: 4680019383507
B67: Муфта комб.разъём.(американка) с внутренней резьбой 32x1" (80/20) (Valfex) СЕРАЯ | C67: 22202794 | D67: VLF ПП Америк 32х1 вн | E67: шт | H67: 6.57 | K67: =ROUND(ROUND(ROUND(H67/100*(100-I67)/100*(100-J67), 2)/1.2, 2)*1.2, 2) -> 6.58 | M67: =ROUND(ROUND(ROUND(K67/1.2, 2)*L67, 2)*1.2, 2) -> 0 | N67: 4640017898588
B68: Муфта комб.разъём.(американка) с внутренней резьбой 32x1/2" (90/15) (Valfex) СЕРАЯ | C68: 22204660 | D68: VLF ПП Америк 32х1/2 вн | E68: шт | H68: 6.8 | K68: =ROUND(ROUND(ROUND(H68/100*(100-I68)/100*(100-J68), 2)/1.2, 2)*1.2, 2) -> 6.8 | M68: =ROUND(ROUND(ROUND(K68/1.2, 2)*L68, 2)*1.2, 2) -> 0 | N68: 4680019383644
B69: Муфта комб.разъём.(американка) с внутренней резьбой 32x3/4" (80/20) (Valfex) СЕРАЯ | C69: 22203773 | D69: VLF ПП Америк 32х3/4 вн | E69: шт | H69: 7.13 | K69: =ROUND(ROUND(ROUND(H69/100*(100-I69)/100*(100-J69), 2)/1.2, 2)*1.2, 2) -> 7.13 | M69: =ROUND(ROUND(ROUND(K69/1.2, 2)*L69, 2)*1.2, 2) -> 0 | N69: 4680019383392
B70: Муфта комб.разъём.(американка) с внутренней резьбой 40x1 1/4" (40/10) (Valfex) СЕРАЯ | C70: 22205633 | D70: VLF ПП Америк 40х1 1/4 вн | E70: шт | H70: 9.62 | K70: =ROUND(ROUND(ROUND(H70/100*(100-I70)/100*(100-J70), 2)/1.2, 2)*1.2, 2) -> 9.62 | M70: =ROUND(ROUND(ROUND(K70/1.2, 2)*L70, 2)*1.2, 2) -> 0 | N70: 4640017898601
B71: Муфта комб.разъём.(американка) с внутренней резьбой 50x1 1/2" (25/5) (Valfex) СЕРАЯ | C71: 22205635 | D71: VLF ПП Америк 50х1 1/2 вн | E71: шт | H71: 19.76 | K71: =ROUND(ROUND(ROUND(H71/100*(100-I71)/100*(100-J71), 2)/1.2, 2)*1.2, 2) -> 19.76 | M71: =ROUND(ROUND(ROUND(K71/1.2, 2)*L71, 2)*1.2, 2) -> 0 | N71: 4680019383545
B72: Муфта комб.разъём.(американка) с внутренней резьбой 63x2 " (16/2) (Valfex) СЕРАЯ | C72: 22206444 | D72: VLF ПП Америк 63х2 вн | E72: шт | H72: 31.46 | K72: =ROUND(ROUND(ROUND(H72/100*(100-I72)/100*(100-J72), 2)/1.2, 2)*1.2, 2) -> 31.46 | M72: =ROUND(ROUND(ROUND(K72/1.2, 2)*L72, 2)*1.2, 2) -> 0 | N72: 4640017898649
B73: Муфта комб.разъём.(американка) с наружной резьбой 20x1" (80/20) (Valfex) СЕРАЯ | C73: 22204341 | D73: VLF ПП Америк 20х1 нар | E73: шт | H73: 8.41 | K73: =ROUND(ROUND(ROUND(H73/100*(100-I73)/100*(100-J73), 2)/1.2, 2)*1.2, 2) -> 8.41 | M73: =ROUND(ROUND(ROUND(K73/1.2, 2)*L73, 2)*1.2, 2) -> 0 | N73: 4680019385754
B74: Муфта комб.разъём.(американка) с наружной резьбой 20x3/4" (175/25) (Valfex) СЕРАЯ | C74: 22203183 | D74: VLF ПП Америк 20х3/4 нар | E74: шт | H74: 4.61 | K74: =ROUND(ROUND(ROUND(H74/100*(100-I74)/100*(100-J74), 2)/1.2, 2)*1.2, 2) -> 4.61 | M74: =ROUND(ROUND(ROUND(K74/1.2, 2)*L74, 2)*1.2, 2) -> 0 | N74: 4680019383354
B75: Муфта комб.разъём.(американка) с наружной резьбой 20х1/2" (175/25) (Valfex) СЕРАЯ | C75: 22202797 | D75: VLF ПП Америк 20х1/2 нар | E75: шт | H75: 3.67 | K75: =ROUND(ROUND(ROUND(H75/100*(100-I75)/100*(100-J75), 2)/1.2, 2)*1.2, 2) -> 3.67 | M75: =ROUND(ROUND(ROUND(K75/1.2, 2)*L75, 2)*1.2, 2) -> 0 | N75: 4680019383446
B76: Муфта комб.разъём.(американка) с наружной резьбой 25x1" (80/20) (Valfex) СЕРАЯ | C76: 22204863 | D76: VLF ПП Америк 25х1 нар | E76: шт | H76: 7.23 | K76: =ROUND(ROUND(ROUND(H76/100*(100-I76)/100*(100-J76), 2)/1.2, 2)*1.2, 2) -> 7.24 | M76: =ROUND(ROUND(ROUND(K76/1.2, 2)*L76, 2)*1.2, 2) -> 0 | N76: 4680019383484
B77: Муфта комб.разъём.(американка) с наружной резьбой 25x1/2" (120/20) (Valfex) СЕРАЯ | C77: 22203158 | D77: VLF ПП Америк 25х1/2 нар | E77: шт | H77: 5.85 | K77: =ROUND(ROUND(ROUND(H77/100*(100-I77)/100*(100-J77), 2)/1.2, 2)*1.2, 2) -> 5.86 | M77: =ROUND(ROUND(ROUND(K77/1.2, 2)*L77, 2)*1.2, 2) -> 0 | N77: 4680019383378
B78: Муфта комб.разъём.(американка) с наружной резьбой 25x3/4" (100/25) (Valfex) СЕРАЯ | C78: 22202799 | D78: VLF ПП Америк 25х3/4 нар | E78: шт | H78: 5.69 | K78: =ROUND(ROUND(ROUND(H78/100*(100-I78)/100*(100-J78), 2)/1.2, 2)*1.2, 2) -> 5.69 | M78: =ROUND(ROUND(ROUND(K78/1.2, 2)*L78, 2)*1.2, 2) -> 0 | N78: 4640017898663
B79: Муфта комб.разъём.(американка) с наружной резьбой 32x1 1/4" (50/10) (Valfex) СЕРАЯ | C79: 22204866 | D79: VLF ПП Америк 32х1 1/4 нар | E79: шт | H79: 10.34 | K79: =ROUND(ROUND(ROUND(H79/100*(100-I79)/100*(100-J79), 2)/1.2, 2)*1.2, 2) -> 10.34 | M79: =ROUND(ROUND(ROUND(K79/1.2, 2)*L79, 2)*1.2, 2) -> 0 | N79: 4680019383521
B80: Муфта комб.разъём.(американка) с наружной резьбой 32x1" (60/15) (Valfex) СЕРАЯ | C80: 22203600 | D80: VLF ПП Америк 32х1 нар | E80: шт | H80: 7.7 | K80: =ROUND(ROUND(ROUND(H80/100*(100-I80)/100*(100-J80), 2)/1.2, 2)*1.2, 2) -> 7.7 | M80: =ROUND(ROUND(ROUND(K80/1.2, 2)*L80, 2)*1.2, 2) -> 0 | N80: 4640017898779
B81: Муфта комб.разъём.(американка) с наружной резьбой 32x1/2" (80/20) (Valfex) СЕРАЯ | C81: 22204661 | D81: VLF ПП Америк 32х1/2 нар | E81: шт | H81: 7.58 | K81: =ROUND(ROUND(ROUND(H81/100*(100-I81)/100*(100-J81), 2)/1.2, 2)*1.2, 2) -> 7.58 | M81: =ROUND(ROUND(ROUND(K81/1.2, 2)*L81, 2)*1.2, 2) -> 0 | N81: 4680019383620
B82: Муфта комб.разъём.(американка) с наружной резьбой 32x3/4" (60/15) (Valfex) СЕРАЯ | C82: 22204514 | D82: VLF ПП Америк 32х3/4 нар | E82: шт | H82: 7.78 | K82: =ROUND(ROUND(ROUND(H82/100*(100-I82)/100*(100-J82), 2)/1.2, 2)*1.2, 2) -> 7.78 | M82: =ROUND(ROUND(ROUND(K82/1.2, 2)*L82, 2)*1.2, 2) -> 0 | N82: 4680019383415
B83: Муфта комб.разъём.(американка) с наружной резьбой 40x1 1/4" (40/10) (Valfex) СЕРАЯ | C83: 22203601 | D83: VLF ПП Америк 40х1 1/4 нар | E83: шт | H83: 12.75 | K83: =ROUND(ROUND(ROUND(H83/100*(100-I83)/100*(100-J83), 2)/1.2, 2)*1.2, 2) -> 12.76 | M83: =ROUND(ROUND(ROUND(K83/1.2, 2)*L83, 2)*1.2, 2) -> 0 | N83: 4680019383583
B84: Муфта комб.разъём.(американка) с наружной резьбой 50x1 1/2" (20/5) (Valfex) СЕРАЯ | C84: 22205637 | D84: VLF ПП Америк 50х1 1/2 нар | E84: шт | H84: 22.58 | K84: =ROUND(ROUND(ROUND(H84/100*(100-I84)/100*(100-J84), 2)/1.2, 2)*1.2, 2) -> 22.58 | M84: =ROUND(ROUND(ROUND(K84/1.2, 2)*L84, 2)*1.2, 2) -> 0 | N84: 4680019383569
B85: Муфта комб.разъём.(американка) с наружной резьбой 63x2" (16/2) (Valfex) СЕРАЯ | C85: 22206447 | D85: VLF ПП Америк 63х2 нар | E85: шт | H85: 35.87 | K85: =ROUND(ROUND(ROUND(H85/100*(100-I85)/100*(100-J85), 2)/1.2, 2)*1.2, 2) -> 35.87 | M85: =ROUND(ROUND(ROUND(K85/1.2, 2)*L85, 2)*1.2, 2) -> 0 | N85: 4680019383606
B86: Муфта переходная 25/20 ВН/НР (500/100) (Valfex) СЕРАЯ | C86: 22202805 | D86: VLF ПП Муфта 25х20 вн/нар | E86: шт | H86: 0.13 | K86: =ROUND(ROUND(ROUND(H86/100*(100-I86)/100*(100-J86), 2)/1.2, 2)*1.2, 2) -> 0.13 | M86: =ROUND(ROUND(ROUND(K86/1.2, 2)*L86, 2)*1.2, 2) -> 0 | N86: 4640017899950
B87: Муфта переходная 32/20 ВН/НР (450/75) (Valfex) СЕРАЯ | C87: 22204662 | D87: VLF ПП Муфта 32х20 вн/нар | E87: шт | H87: 0.2 | K87: =ROUND(ROUND(ROUND(H87/100*(100-I87)/100*(100-J87), 2)/1.2, 2)*1.2, 2) -> 0.2 | M87: =ROUND(ROUND(ROUND(K87/1.2, 2)*L87, 2)*1.2, 2) -> 0 | N87: 4640017899974
B88: Муфта переходная 32/25 ВН/ВН (250/50) (Valfex) СЕРАЯ | C88: 22206448 | D88: VLF ПП Муфта 32х25 вн/вн | E88: шт | H88: 0.3 | K88: =ROUND(ROUND(ROUND(H88/100*(100-I88)/100*(100-J88), 2)/1.2, 2)*1.2, 2) -> 0.3 | M88: =ROUND(ROUND(ROUND(K88/1.2, 2)*L88, 2)*1.2, 2) -> 0 | N88: 4640017899998
B89: Муфта переходная 32/25 ВН/НР (300/75) (Valfex) СЕРАЯ | C89: 22202808 | D89: VLF ПП Муфта 32х25 вн/нар | E89: шт | H89: 0.2 | K89: =ROUND(ROUND(ROUND(H89/100*(100-I89)/100*(100-J89), 2)/1.2, 2)*1.2, 2) -> 0.2 | M89: =ROUND(ROUND(ROUND(K89/1.2, 2)*L89, 2)*1.2, 2) -> 0 | N89: 4640017899998
B90: Муфта переходная 40/20 ВН/ВН (200/25) (Valfex) СЕРАЯ | C90: 24000337 | D90: VLF ПП Муфта 40х20 вн/вн | E90: шт | H90: 0.52 | K90: =ROUND(ROUND(ROUND(H90/100*(100-I90)/100*(100-J90), 2)/1.2, 2)*1.2, 2) -> 0.52 | M90: =ROUND(ROUND(ROUND(K90/1.2, 2)*L90, 2)*1.2, 2) -> 0 | N90: 4680086750141
B91: Муфта переходная 40/20 ВН/НР (250/50) (Valfex) СЕРАЯ | C91: 22208235 | D91: VLF ПП Муфта 40х20 вн/нар | E91: шт | H91: 0.38 | K91: =ROUND(ROUND(ROUND(H91/100*(100-I91)/100*(100-J91), 2)/1.2, 2)*1.2, 2) -> 0.38 | M91: =ROUND(ROUND(ROUND(K91/1.2, 2)*L91, 2)*1.2, 2) -> 0 | N91: 4680019383996
B92: Муфта переходная 40/25 ВН/ВН (150/25) (Valfex) СЕРАЯ | C92: 24000338 | D92: VLF ПП Муфта 40х25 вн/вн | E92: шт | H92: 0.52 | K92: =ROUND(ROUND(ROUND(H92/100*(100-I92)/100*(100-J92), 2)/1.2, 2)*1.2, 2) -> 0.52 | M92: =ROUND(ROUND(ROUND(K92/1.2, 2)*L92, 2)*1.2, 2) -> 0 | N92: 4680086750165
B93: Муфта переходная 40/25 ВН/НР (250/50) (Valfex) СЕРАЯ | C93: 22203860 | D93: VLF ПП Муфта 40х25 вн/нар | E93: шт | H93: 0.31 | K93: =ROUND(ROUND(ROUND(H93/100*(100-I93)/100*(100-J93), 2)/1.2, 2)*1.2, 2) -> 0.31 | M93: =ROUND(ROUND(ROUND(K93/1.2, 2)*L93, 2)*1.2, 2) -> 0 | N93: 4680019384016
B94: Муфта переходная 40/32 ВН/НР (200/25) (Valfex) СЕРАЯ | C94: 22203603 | D94: VLF ПП Муфта 40х32 вн/нар | E94: шт | H94: 0.39 | K94: =ROUND(ROUND(ROUND(H94/100*(100-I94)/100*(100-J94), 2)/1.2, 2)*1.2, 2) -> 0.4 | M94: =ROUND(ROUND(ROUND(K94/1.2, 2)*L94, 2)*1.2, 2) -> 0 | N94: 4680019384030
B95: Муфта переходная 50/20 ВН/НР (150/25) (Valfex) СЕРАЯ | C95: 22205639 | D95: VLF ПП Муфта 50х20 вн/нар | E95: шт | H95: 0.74 | K95: =ROUND(ROUND(ROUND(H95/100*(100-I95)/100*(100-J95), 2)/1.2, 2)*1.2, 2) -> 0.74 | M95: =ROUND(ROUND(ROUND(K95/1.2, 2)*L95, 2)*1.2, 2) -> 0 | N95: 4680019384054
B96: Муфта переходная 50/25 ВН/НР (150/25) (Valfex) СЕРАЯ | C96: 22205641 | D96: VLF ПП Муфта 50х25 вн/нар | E96: шт | H96: 0.76 | K96: =ROUND(ROUND(ROUND(H96/100*(100-I96)/100*(100-J96), 2)/1.2, 2)*1.2, 2) -> 0.76 | M96: =ROUND(ROUND(ROUND(K96/1.2, 2)*L96, 2)*1.2, 2) -> 0 | N96: 4680019384078
B97: Муфта переходная 50/32 ВН/НР (100/25) (Valfex) СЕРАЯ | C97: 22205643 | D97: VLF ПП Муфта 50х32 вн/нар | E97: шт | H97: 0.88 | K97: =ROUND(ROUND(ROUND(H97/100*(100-I97)/100*(100-J97), 2)/1.2, 2)*1.2, 2) -> 0.88 | M97: =ROUND(ROUND(ROUND(K97/1.2, 2)*L97, 2)*1.2, 2) -> 0 | N97: 4680019384092
B98: Муфта переходная 50/40 ВН/НР (100/20) (Valfex) СЕРАЯ | C98: 22205644 | D98: VLF ПП Муфта 50х40 вн/нар | E98: шт | H98: 0.96 | K98: =ROUND(ROUND(ROUND(H98/100*(100-I98)/100*(100-J98), 2)/1.2, 2)*1.2, 2) -> 0.96 | M98: =ROUND(ROUND(ROUND(K98/1.2, 2)*L98, 2)*1.2, 2) -> 0 | N98: 4680019384115
B99: Муфта переходная 63/20 ВН/НР (80/20) (Valfex) СЕРАЯ | C99: 22211137 | D99: VLF ПП Муфта 63х20 вн/нар | E99: шт | H99: 1.19 | K99: =ROUND(ROUND(ROUND(H99/100*(100-I99)/100*(100-J99), 2)/1.2, 2)*1.2, 2) -> 1.19 | M99: =ROUND(ROUND(ROUND(K99/1.2, 2)*L99, 2)*1.2, 2) -> 0 | N99: 4680019384139
B100: Муфта переходная 63/25 ВН/НР (80/20) (Valfex) СЕРАЯ | C100: 22207510 | D100: VLF ПП Муфта 63х25 вн/нар сер | E100: шт | H100: 1.2 | K100: =ROUND(ROUND(ROUND(H100/100*(100-I100)/100*(100-J100), 2)/1.2, 2)*1.2, 2) -> 1.2 | M100: =ROUND(ROUND(ROUND(K100/1.2, 2)*L100, 2)*1.2, 2) -> 0 | N100: 4680019384153
B101: Муфта переходная 63/32 ВН/НР (60/15) (Valfex) СЕРАЯ | C101: 22207512 | D101: VLF ПП Муфта 63х32 вн/нар сер | E101: шт | H101: 1.15 | K101: =ROUND(ROUND(ROUND(H101/100*(100-I101)/100*(100-J101), 2)/1.2, 2)*1.2, 2) -> 1.15 | M101: =ROUND(ROUND(ROUND(K101/1.2, 2)*L101, 2)*1.2, 2) -> 0 | N101: 4680019384177
B102: Муфта переходная 63/50 ВН/НР (60/10) (Valfex) СЕРАЯ | C102: 22206838 | D102: VLF ПП Муфта 63х50 вн/нар | E102: шт | H102: 1.35 | K102: =ROUND(ROUND(ROUND(H102/100*(100-I102)/100*(100-J102), 2)/1.2, 2)*1.2, 2) -> 1.36 | M102: =ROUND(ROUND(ROUND(K102/1.2, 2)*L102, 2)*1.2, 2) -> 0 | N102: 4680019384214
B103: Муфта переходная с внутренней резьбой 20 x 1/2" (150/30) (Valfex) СЕРАЯ | C103: 22202801 | D103: VLF ПП Муфта 20х1/2 вн | E103: шт | H103: 1.41 | K103: =ROUND(ROUND(ROUND(H103/100*(100-I103)/100*(100-J103), 2)/1.2, 2)*1.2, 2) -> 1.42 | M103: =ROUND(ROUND(ROUND(K103/1.2, 2)*L103, 2)*1.2, 2) -> 0 | N103: 4640017899479
B104: Муфта переходная с внутренней резьбой 20 x 3/4" (100/25) (Valfex) СЕРАЯ | C104: 22202894 | D104: VLF ПП Муфта 20х3/4 вн | E104: шт | H104: 2.09 | K104: =ROUND(ROUND(ROUND(H104/100*(100-I104)/100*(100-J104), 2)/1.2, 2)*1.2, 2) -> 2.09 | M104: =ROUND(ROUND(ROUND(K104/1.2, 2)*L104, 2)*1.2, 2) -> 0 | N104: 4640017897055
B105: Муфта переходная с внутренней резьбой 25 x 1" (60/15) (Valfex) СЕРАЯ | C105: 22207692 | D105: VLF ПП Муфта 25х1 вн | E105: шт | H105: 4.11 | K105: =ROUND(ROUND(ROUND(H105/100*(100-I105)/100*(100-J105), 2)/1.2, 2)*1.2, 2) -> 4.12 | M105: =ROUND(ROUND(ROUND(K105/1.2, 2)*L105, 2)*1.2, 2) -> 0 | N105: 4660042574837
B106: Муфта переходная с внутренней резьбой 25 x 1/2" (100/25) (Valfex) СЕРАЯ | C106: 22203602 | D106: VLF ПП Муфта 25х1/2 вн | E106: шт | H106: 1.74 | K106: =ROUND(ROUND(ROUND(H106/100*(100-I106)/100*(100-J106), 2)/1.2, 2)*1.2, 2) -> 1.74 | M106: =ROUND(ROUND(ROUND(K106/1.2, 2)*L106, 2)*1.2, 2) -> 0 | N106: 4640017899493
B107: Муфта переходная с внутренней резьбой 25 x 3/4" (100/25) (Valfex) СЕРАЯ | C107: 22202895 | D107: VLF ПП Муфта 25х3/4 вн | E107: шт | H107: 2.09 | K107: =ROUND(ROUND(ROUND(H107/100*(100-I107)/100*(100-J107), 2)/1.2, 2)*1.2, 2) -> 2.09 | M107: =ROUND(ROUND(ROUND(K107/1.2, 2)*L107, 2)*1.2, 2) -> 0 | N107: 4640017899516
B108: Муфта переходная с внутренней резьбой 32 x 1" (60/15) (Valfex) СЕРАЯ | C108: 22202896 | D108: VLF ПП Муфта 32х1 вн | E108: шт | H108: 3.05 | K108: =ROUND(ROUND(ROUND(H108/100*(100-I108)/100*(100-J108), 2)/1.2, 2)*1.2, 2) -> 3.05 | M108: =ROUND(ROUND(ROUND(K108/1.2, 2)*L108, 2)*1.2, 2) -> 0 | N108: 4640017899554
B109: Муфта переходная с внутренней резьбой 32 x 1/2" (80/20) (Valfex) СЕРАЯ | C109: 22207693 | D109: VLF ПП Муфта 32х1/2 вн сер | E109: шт | H109: 1.99 | K109: =ROUND(ROUND(ROUND(H109/100*(100-I109)/100*(100-J109), 2)/1.2, 2)*1.2, 2) -> 1.99 | M109: =ROUND(ROUND(ROUND(K109/1.2, 2)*L109, 2)*1.2, 2) -> 0 | N109: 4680019383668
B110: Муфта переходная с внутренней резьбой 32 x 3/4" (80/20) (Valfex) СЕРАЯ | C110: 22204515 | D110: VLF ПП Муфта 32х3/4 вн | E110: шт | H110: 2.16 | K110: =ROUND(ROUND(ROUND(H110/100*(100-I110)/100*(100-J110), 2)/1.2, 2)*1.2, 2) -> 2.16 | M110: =ROUND(ROUND(ROUND(K110/1.2, 2)*L110, 2)*1.2, 2) -> 0 | N110: 4640017897086
B111: Муфта переходная с внутренней резьбой 40 x 1 1/4" под ключ (25/5) (Valfex) СЕРАЯ | C111: 22203861 | D111: VLF ПП Муфта 40х1 1/4 вн | E111: шт | H111: 8.73 | K111: =ROUND(ROUND(ROUND(H111/100*(100-I111)/100*(100-J111), 2)/1.2, 2)*1.2, 2) -> 8.74 | M111: =ROUND(ROUND(ROUND(K111/1.2, 2)*L111, 2)*1.2, 2) -> 0 | N111: 4640017899578
B112: Муфта переходная с внутренней резьбой 40 x 1" (30/6) (Valfex) СЕРАЯ | C112: 22207695 | D112: VLF ПП Муфта 40х1 вн сер | E112: шт | H112: 4.71 | K112: =ROUND(ROUND(ROUND(H112/100*(100-I112)/100*(100-J112), 2)/1.2, 2)*1.2, 2) -> 4.72 | M112: =ROUND(ROUND(ROUND(K112/1.2, 2)*L112, 2)*1.2, 2) -> 0 | N112: 4660042573328
B113: Муфта переходная с внутренней резьбой 50 х 1 1/2" под ключ (12/4) (Valfex) СЕРАЯ | C113: 22205646 | D113: VLF ПП Муфта 50х1 1/2 вн | E113: шт | H113: 12.15 | K113: =ROUND(ROUND(ROUND(H113/100*(100-I113)/100*(100-J113), 2)/1.2, 2)*1.2, 2) -> 12.16 | M113: =ROUND(ROUND(ROUND(K113/1.2, 2)*L113, 2)*1.2, 2) -> 0 | N113: 4680019383767
B114: Муфта переходная с внутренней резьбой 63 х 2" под ключ (8/4) (Valfex) СЕРАЯ | C114: 22207523 | D114: VLF ПП Муфта 63х2 вн | E114: шт | H114: 19.22 | K114: =ROUND(ROUND(ROUND(H114/100*(100-I114)/100*(100-J114), 2)/1.2, 2)*1.2, 2) -> 19.22 | M114: =ROUND(ROUND(ROUND(K114/1.2, 2)*L114, 2)*1.2, 2) -> 0 | N114: 4640017899592
B115: Муфта переходная с наружной резьбой 20 x 1/2" (150/30) (Valfex) СЕРАЯ | C115: 22202802 | D115: VLF ПП Муфта 20х1/2 нар | E115: шт | H115: 1.73 | K115: =ROUND(ROUND(ROUND(H115/100*(100-I115)/100*(100-J115), 2)/1.2, 2)*1.2, 2) -> 1.73 | M115: =ROUND(ROUND(ROUND(K115/1.2, 2)*L115, 2)*1.2, 2) -> 0 | N115: 4640017897109
B116: Муфта переходная с наружной резьбой 20 x 3/4" (100/25) (Valfex) СЕРАЯ | C116: 22202898 | D116: VLF ПП Муфта 20х3/4 нар | E116: шт | H116: 2.92 | K116: =ROUND(ROUND(ROUND(H116/100*(100-I116)/100*(100-J116), 2)/1.2, 2)*1.2, 2) -> 2.92 | M116: =ROUND(ROUND(ROUND(K116/1.2, 2)*L116, 2)*1.2, 2) -> 0 | N116: 4640017897123
B117: Муфта переходная с наружной резьбой 25 x 1" (80/20) (Valfex) СЕРАЯ | C117: 22207697 | D117: VLF ПП Муфта 25х1 нар сер | E117: шт | H117: 4.58 | K117: =ROUND(ROUND(ROUND(H117/100*(100-I117)/100*(100-J117), 2)/1.2, 2)*1.2, 2) -> 4.58 | M117: =ROUND(ROUND(ROUND(K117/1.2, 2)*L117, 2)*1.2, 2) -> 0 | N117: 4660042575193
B118: Муфта переходная с наружной резьбой 25 x 1/2" (100/25) (Valfex) СЕРАЯ | C118: 22202806 | D118: VLF ПП Муфта 25х1/2 нар | E118: шт | H118: 2.02 | K118: =ROUND(ROUND(ROUND(H118/100*(100-I118)/100*(100-J118), 2)/1.2, 2)*1.2, 2) -> 2.02 | M118: =ROUND(ROUND(ROUND(K118/1.2, 2)*L118, 2)*1.2, 2) -> 0 | N118: 4640017897147
B119: Муфта переходная с наружной резьбой 25 x 3/4" (100/25) (Valfex) СЕРАЯ | C119: 22202807 | D119: VLF ПП Муфта 25х3/4 нар | E119: шт | H119: 2.9 | K119: =ROUND(ROUND(ROUND(H119/100*(100-I119)/100*(100-J119), 2)/1.2, 2)*1.2, 2) -> 2.9 | M119: =ROUND(ROUND(ROUND(K119/1.2, 2)*L119, 2)*1.2, 2) -> 0 | N119: 4640017899615
B120: Муфта переходная с наружной резьбой 32 x 1" (60/15) (Valfex) СЕРАЯ | C120: 22202899 | D120: VLF ПП Муфта 32х1 нар | E120: шт | H120: 4.06 | K120: =ROUND(ROUND(ROUND(H120/100*(100-I120)/100*(100-J120), 2)/1.2, 2)*1.2, 2) -> 4.06 | M120: =ROUND(ROUND(ROUND(K120/1.2, 2)*L120, 2)*1.2, 2) -> 0 | N120: 4640017899639
B121: Муфта переходная с наружной резьбой 32 x 1/2" (80/20) (Valfex) СЕРАЯ | C121: 22207698 | D121: VLF ПП Муфта 32х1/2 нар сер | E121: шт | H121: 2.22 | K121: =ROUND(ROUND(ROUND(H121/100*(100-I121)/100*(100-J121), 2)/1.2, 2)*1.2, 2) -> 2.22 | M121: =ROUND(ROUND(ROUND(K121/1.2, 2)*L121, 2)*1.2, 2) -> 0 | N121: 4680019383675
B122: Муфта переходная с наружной резьбой 32 x 3/4" (80/20) (Valfex) СЕРАЯ | C122: 22204516 | D122: VLF ПП Муфта 32х3/4 нар | E122: шт | H122: 3.12 | K122: =ROUND(ROUND(ROUND(H122/100*(100-I122)/100*(100-J122), 2)/1.2, 2)*1.2, 2) -> 3.12 | M122: =ROUND(ROUND(ROUND(K122/1.2, 2)*L122, 2)*1.2, 2) -> 0 | N122: 4680019383682
B123: Муфта переходная с наружной резьбой 40 x 1 1/4" под ключ (25/5) (Valfex) СЕРАЯ | C123: 22203862 | D123: VLF ПП Муфта 40х1 1/4 нар | E123: шт | H123: 12.72 | K123: =ROUND(ROUND(ROUND(H123/100*(100-I123)/100*(100-J123), 2)/1.2, 2)*1.2, 2) -> 12.72 | M123: =ROUND(ROUND(ROUND(K123/1.2, 2)*L123, 2)*1.2, 2) -> 0 | N123: 4680019383743
B124: Муфта переходная с наружной резьбой 40 x 1" (30/6) (Valfex) СЕРАЯ | C124: 22207700 | D124: VLF ПП Муфта 40х1 нар сер | E124: шт | H124: 5.29 | K124: =ROUND(ROUND(ROUND(H124/100*(100-I124)/100*(100-J124), 2)/1.2, 2)*1.2, 2) -> 5.29 | M124: =ROUND(ROUND(ROUND(K124/1.2, 2)*L124, 2)*1.2, 2) -> 0 | N124: 4660042573342
B125: Муфта переходная с наружной резьбой 50 x 1 1/2" под ключ (12/4) (Valfex) СЕРАЯ | C125: 22205647 | D125: VLF ПП Муфта 50х1 1/2 нар | E125: шт | H125: 16.29 | K125: =ROUND(ROUND(ROUND(H125/100*(100-I125)/100*(100-J125), 2)/1.2, 2)*1.2, 2) -> 16.3 | M125: =ROUND(ROUND(ROUND(K125/1.2, 2)*L125, 2)*1.2, 2) -> 0 | N125: 4640017897161
B126: Муфта переходная с наружной резьбой 63 x 2" под ключ (8/4) (Valfex) СЕРАЯ | C126: 22207042 | D126: VLF ПП Муфта 63х2 нар сер | E126: шт | H126: 30.18 | K126: =ROUND(ROUND(ROUND(H126/100*(100-I126)/100*(100-J126), 2)/1.2, 2)*1.2, 2) -> 30.18 | M126: =ROUND(ROUND(ROUND(K126/1.2, 2)*L126, 2)*1.2, 2) -> 0 | N126: 4640017897185
B127: Муфта с накидной гайкой 20 х 1/2" (150/30) (Valfex) СЕРАЯ | C127: 22202803 | D127: VLF ПП Муфта 20*1/2 с гайк | E127: шт | H127: 3.16 | K127: =ROUND(ROUND(ROUND(H127/100*(100-I127)/100*(100-J127), 2)/1.2, 2)*1.2, 2) -> 3.16 | M127: =ROUND(ROUND(ROUND(K127/1.2, 2)*L127, 2)*1.2, 2) -> 0 | N127: 4680019383842
B128: Муфта с накидной гайкой 20 х 3/4" (100/20) (Valfex) СЕРАЯ | C128: 22205093 | D128: VLF ПП Муфта 20*3/4 с гайк | E128: шт | H128: 3.87 | K128: =ROUND(ROUND(ROUND(H128/100*(100-I128)/100*(100-J128), 2)/1.2, 2)*1.2, 2) -> 3.88 | M128: =ROUND(ROUND(ROUND(K128/1.2, 2)*L128, 2)*1.2, 2) -> 0 | N128: 4680019389004
B129: Муфта с накидной гайкой 25 х 3/4" (100/20) (Valfex) СЕРАЯ | C129: 22203774 | D129: VLF ПП Муфта 25*3/4 с гайк | E129: шт | H129: 4.18 | K129: =ROUND(ROUND(ROUND(H129/100*(100-I129)/100*(100-J129), 2)/1.2, 2)*1.2, 2) -> 4.18 | M129: =ROUND(ROUND(ROUND(K129/1.2, 2)*L129, 2)*1.2, 2) -> 0 | N129: 4680019383866
B130: Муфта с накидной гайкой 32 х 1" (80/20) (Valfex) СЕРАЯ "ВАЛФ-РУС" | C130: 22210415 | D130: VLF ПП Муфта 32*1 с гайк | E130: шт | H130: 5.97 | K130: =ROUND(ROUND(ROUND(H130/100*(100-I130)/100*(100-J130), 2)/1.2, 2)*1.2, 2) -> 5.98 | M130: =ROUND(ROUND(ROUND(K130/1.2, 2)*L130, 2)*1.2, 2) -> 0 | N130: 4680019389127
B131: Муфта с накидной гайкой 32x1 1/4" (60/15) (Valfex) СЕРАЯ "ВАЛФ-РУС" | C131: 24000434 | D131: VLF ПП Муфта 32*1 1/4 с гайк | E131: шт | H131: 8.1 | K131: =ROUND(ROUND(ROUND(H131/100*(100-I131)/100*(100-J131), 2)/1.2, 2)*1.2, 2) -> 8.1 | M131: =ROUND(ROUND(ROUND(K131/1.2, 2)*L131, 2)*1.2, 2) -> 0 | N131: 4680019389103
B132: Набор цветных удлиненных заглушек 1/2" (2 шт.) (100/1) (синий/красный) VALFEX ЗАВОД ВАЛФ-РУС | C132: 22210140 | D132: VLF 10192020 | E132: компл | H132: 0.82 | K132: =ROUND(ROUND(ROUND(H132/100*(100-I132)/100*(100-J132), 2)/1.2, 2)*1.2, 2) -> 0.82 | M132: =ROUND(ROUND(ROUND(K132/1.2, 2)*L132, 2)*1.2, 2) -> 0 | N132: 4680086706834
B133: Ножницы VALFEX PPC 20-63 (20) | C133: 22210410 | D133: ХОЗ Ножницы 20-63 | E133: шт | H133: 43.3 | K133: =ROUND(ROUND(ROUND(H133/100*(100-I133)/100*(100-J133), 2)/1.2, 2)*1.2, 2) -> 43.3 | M133: =ROUND(ROUND(ROUND(K133/1.2, 2)*L133, 2)*1.2, 2) -> 0 | N133: 4680019385808
B134: Ножницы для пластиковых труб VALFEX 40 мм (50) | C134: 22213083 | D134: ХОЗ VF.394.0.40.M | E134: шт | H134: 6.91 | K134: =ROUND(ROUND(ROUND(H134/100*(100-I134)/100*(100-J134), 2)/1.2, 2)*1.2, 2) -> 6.91 | M134: =ROUND(ROUND(ROUND(K134/1.2, 2)*L134, 2)*1.2, 2) -> 0 | N134: 4680086734172
B135: Обвод 20 короткий (200/50) (Valfex) СЕРЫЙ | C135: 22202809 | D135: VLF ПП Обвод 20 кор | E135: шт | H135: 0.37 | K135: =ROUND(ROUND(ROUND(H135/100*(100-I135)/100*(100-J135), 2)/1.2, 2)*1.2, 2) -> 0.37 | M135: =ROUND(ROUND(ROUND(K135/1.2, 2)*L135, 2)*1.2, 2) -> 0 | N135: 4640017892685
B136: Обвод 25 короткий (150/25) (Valfex) СЕРЫЙ | C136: 22202902 | D136: VLF ПП Обвод 25 кор | E136: шт | H136: 0.6 | K136: =ROUND(ROUND(ROUND(H136/100*(100-I136)/100*(100-J136), 2)/1.2, 2)*1.2, 2) -> 0.6 | M136: =ROUND(ROUND(ROUND(K136/1.2, 2)*L136, 2)*1.2, 2) -> 0 | N136: 4640017892715
B137: Обвод 32 короткий (70/10) (Valfex) СЕРЫЙ | C137: 22202903 | D137: VLF ПП Обвод 32 кор | E137: шт | H137: 1.24 | K137: =ROUND(ROUND(ROUND(H137/100*(100-I137)/100*(100-J137), 2)/1.2, 2)*1.2, 2) -> 1.24 | M137: =ROUND(ROUND(ROUND(K137/1.2, 2)*L137, 2)*1.2, 2) -> 0 | N137: 4680019384399
B138: Обводное колено 20 (80/20) (Valfex) СЕРОЕ | C138: 22202811 | D138: VLF ПП Обвод колено 20 | E138: шт | H138: 0.81 | K138: =ROUND(ROUND(ROUND(H138/100*(100-I138)/100*(100-J138), 2)/1.2, 2)*1.2, 2) -> 0.82 | M138: =ROUND(ROUND(ROUND(K138/1.2, 2)*L138, 2)*1.2, 2) -> 0 | N138: 4640017892791
B139: Обводное колено 25 (60/20) (Valfex) СЕРОЕ | C139: 22203604 | D139: VLF ПП Обвод колено 25 | E139: шт | H139: 1.08 | K139: =ROUND(ROUND(ROUND(H139/100*(100-I139)/100*(100-J139), 2)/1.2, 2)*1.2, 2) -> 1.08 | M139: =ROUND(ROUND(ROUND(K139/1.2, 2)*L139, 2)*1.2, 2) -> 0 | N139: 4640017892876
B140: Обводное колено 32 (30/15) (Valfex) СЕРОЕ | C140: 22211483 | D140: VLF ПП Обвод колено 32 | E140: шт | H140: 2.05 | K140: =ROUND(ROUND(ROUND(H140/100*(100-I140)/100*(100-J140), 2)/1.2, 2)*1.2, 2) -> 2.05 | M140: =ROUND(ROUND(ROUND(K140/1.2, 2)*L140, 2)*1.2, 2) -> 0 | N140: 4640017893163
B141: Опора 20/22 без защелки (800/200) (Valfex) СЕРАЯ | C141: 22209062 | D141: VLF ПП опора 20 | E141: шт | H141: 0.07 | K141: =ROUND(ROUND(ROUND(H141/100*(100-I141)/100*(100-J141), 2)/1.2, 2)*1.2, 2) -> 0.07 | M141: =ROUND(ROUND(ROUND(K141/1.2, 2)*L141, 2)*1.2, 2) -> 0 | N141: 4660042578637
B142: Опора 25/27 без защелки (500/125) (Valfex) СЕРАЯ | C142: 22208965 | D142: VLF ПП опора 25 | E142: шт | H142: 0.09 | K142: =ROUND(ROUND(ROUND(H142/100*(100-I142)/100*(100-J142), 2)/1.2, 2)*1.2, 2) -> 0.1 | M142: =ROUND(ROUND(ROUND(K142/1.2, 2)*L142, 2)*1.2, 2) -> 0 | N142: 4660042578590
B143: Опора 32/34 без защелки (300/75) (Valfex) СЕРАЯ | C143: 22209598 | D143: VLF ПП опора 32 | E143: шт | H143: 0.13 | K143: =ROUND(ROUND(ROUND(H143/100*(100-I143)/100*(100-J143), 2)/1.2, 2)*1.2, 2) -> 0.13 | M143: =ROUND(ROUND(ROUND(K143/1.2, 2)*L143, 2)*1.2, 2) -> 0 | N143: 4660042578613
B144: Опора двойная 20/22 (600/150) (Valfex) СЕРАЯ | C144: 22203159 | D144: VLF ПП Клипса 20 | E144: шт | H144: 0.15 | K144: =ROUND(ROUND(ROUND(H144/100*(100-I144)/100*(100-J144), 2)/1.2, 2)*1.2, 2) -> 0.16 | M144: =ROUND(ROUND(ROUND(K144/1.2, 2)*L144, 2)*1.2, 2) -> 0 | N144: 4680019384412
B145: Опора двойная 25/27 (400/100) (Valfex) СЕРАЯ | C145: 22203135 | D145: VLF ПП Клипса 25 | E145: шт | H145: 0.18 | K145: =ROUND(ROUND(ROUND(H145/100*(100-I145)/100*(100-J145), 2)/1.2, 2)*1.2, 2) -> 0.18 | M145: =ROUND(ROUND(ROUND(K145/1.2, 2)*L145, 2)*1.2, 2) -> 0 | N145: 4680019381992
B146: Опора двойная 32/34 (240/60) (Valfex) СЕРАЯ | C146: 22203779 | D146: VLF ПП Клипса 32 | E146: шт | H146: 0.24 | K146: =ROUND(ROUND(ROUND(H146/100*(100-I146)/100*(100-J146), 2)/1.2, 2)*1.2, 2) -> 0.24 | M146: =ROUND(ROUND(ROUND(K146/1.2, 2)*L146, 2)*1.2, 2) -> 0 | N146: 4680019384467
B147: Опора с креплением 16/18 (1500/300) (Valfex) СЕРАЯ | C147: 22206209 | D147: VLF ПП опора 16 крепл | E147: шт | H147: 0.07 | K147: =ROUND(ROUND(ROUND(H147/100*(100-I147)/100*(100-J147), 2)/1.2, 2)*1.2, 2) -> 0.07 | M147: =ROUND(ROUND(ROUND(K147/1.2, 2)*L147, 2)*1.2, 2) -> 0 | N147: 4660042572536
B148: Опора с креплением 20/22 (800/200) (Valfex) СЕРАЯ | C148: 22203376 | D148: VLF ПП опора 20 крепл | E148: шт | H148: 0.07 | K148: =ROUND(ROUND(ROUND(H148/100*(100-I148)/100*(100-J148), 2)/1.2, 2)*1.2, 2) -> 0.07 | M148: =ROUND(ROUND(ROUND(K148/1.2, 2)*L148, 2)*1.2, 2) -> 0 | N148: 4640017894023
B149: Опора с креплением 25/27 (500/125) (Valfex) СЕРАЯ | C149: 22203378 | D149: VLF ПП опора 25 крепл | E149: шт | H149: 0.11 | K149: =ROUND(ROUND(ROUND(H149/100*(100-I149)/100*(100-J149), 2)/1.2, 2)*1.2, 2) -> 0.11 | M149: =ROUND(ROUND(ROUND(K149/1.2, 2)*L149, 2)*1.2, 2) -> 0 | N149: 4640017896409
B150: Опора с креплением 32/34 (300/75) (Valfex) СЕРАЯ | C150: 22203380 | D150: VLF ПП опора 32 крепл | E150: шт | H150: 0.15 | K150: =ROUND(ROUND(ROUND(H150/100*(100-I150)/100*(100-J150), 2)/1.2, 2)*1.2, 2) -> 0.16 | M150: =ROUND(ROUND(ROUND(K150/1.2, 2)*L150, 2)*1.2, 2) -> 0 | N150: 4640017896447
B151: Опора с креплением 40/42 (250/50) (Valfex) СЕРАЯ | C151: 22203160 | D151: VLF ПП опора 40 крепл | E151: шт | H151: 0.23 | K151: =ROUND(ROUND(ROUND(H151/100*(100-I151)/100*(100-J151), 2)/1.2, 2)*1.2, 2) -> 0.23 | M151: =ROUND(ROUND(ROUND(K151/1.2, 2)*L151, 2)*1.2, 2) -> 0 | N151: 4680019389929
B152: Опора с креплением 50/52 (180/30) (Valfex) СЕРАЯ | C152: 22205650 | D152: VLF ПП опора 50 крепл | E152: шт | H152: 0.31 | K152: =ROUND(ROUND(ROUND(H152/100*(100-I152)/100*(100-J152), 2)/1.2, 2)*1.2, 2) -> 0.31 | M152: =ROUND(ROUND(ROUND(K152/1.2, 2)*L152, 2)*1.2, 2) -> 0 | N152: 4680019389905
B153: Опора с креплением 63 (120/20) (Valfex) БЕЛАЯ | C153: 22212026 | D153: VLF ПП опора 63 крепл бел | E153: шт | H153: 0.46 | K153: =ROUND(ROUND(ROUND(H153/100*(100-I153)/100*(100-J153), 2)/1.2, 2)*1.2, 2) -> 0.46 | M153: =ROUND(ROUND(ROUND(K153/1.2, 2)*L153, 2)*1.2, 2) -> 0 | N153: 4680086706841
B154: Опора с креплением 63 (120/20) (Valfex) СЕРАЯ | C154: 22210852 | D154: VLF ПП опора 63 крепл | E154: шт | H154: 0.46 | K154: =ROUND(ROUND(ROUND(H154/100*(100-I154)/100*(100-J154), 2)/1.2, 2)*1.2, 2) -> 0.46 | M154: =ROUND(ROUND(ROUND(K154/1.2, 2)*L154, 2)*1.2, 2) -> 0 | N154: 4680086707091
B155: Проходной вентиль 20х1/2 90гр (35/7) (Valfex) СЕРЫЙ | C155: 22206059 | D155: VLF прох вентиль 20*1/2 90 | E155: шт | H155: 9.77 | K155: =ROUND(ROUND(ROUND(H155/100*(100-I155)/100*(100-J155), 2)/1.2, 2)*1.2, 2) -> 9.77 | M155: =ROUND(ROUND(ROUND(K155/1.2, 2)*L155, 2)*1.2, 2) -> 0 | N155: 4680019382968
B156: Проходной вентиль 25х3/4 90гр (30/6) (Valfex) СЕРЫЙ | C156: 22206061 | D156: VLF прох вентиль 25*3/4 90 | E156: шт | H156: 11.04 | K156: =ROUND(ROUND(ROUND(H156/100*(100-I156)/100*(100-J156), 2)/1.2, 2)*1.2, 2) -> 11.04 | M156: =ROUND(ROUND(ROUND(K156/1.2, 2)*L156, 2)*1.2, 2) -> 0 | N156: 4680019382975
B157: Проходной вентиль 32х1 90 гр (20/5) (Valfex) СЕРЫЙ | C157: 22211287 | D157: VLF прох вентиль 32*1 90 сер | E157: шт | H157: 15.39 | K157: =ROUND(ROUND(ROUND(H157/100*(100-I157)/100*(100-J157), 2)/1.2, 2)*1.2, 2) -> 15.4 | M157: =ROUND(ROUND(ROUND(K157/1.2, 2)*L157, 2)*1.2, 2) -> 0 | N157: 4680019382982
B158: Тройник 20 (250/50) (Valfex) СЕРЫЙ | C158: 22202795 | D158: VLF ПП Тройник 20 | E158: шт | H158: 0.21 | K158: =ROUND(ROUND(ROUND(H158/100*(100-I158)/100*(100-J158), 2)/1.2, 2)*1.2, 2) -> 0.22 | M158: =ROUND(ROUND(ROUND(K158/1.2, 2)*L158, 2)*1.2, 2) -> 0 | N158: 4640017896485
B159: Тройник 25 (150/30) (Valfex) СЕРЫЙ | C159: 22202911 | D159: VLF ПП Тройник 25 | E159: шт | H159: 0.37 | K159: =ROUND(ROUND(ROUND(H159/100*(100-I159)/100*(100-J159), 2)/1.2, 2)*1.2, 2) -> 0.37 | M159: =ROUND(ROUND(ROUND(K159/1.2, 2)*L159, 2)*1.2, 2) -> 0 | N159: 4640017896522
B160: Тройник 32 (75/15) (Valfex) СЕРЫЙ | C160: 22202810 | D160: VLF ПП Тройник 32 | E160: шт | H160: 0.72 | K160: =ROUND(ROUND(ROUND(H160/100*(100-I160)/100*(100-J160), 2)/1.2, 2)*1.2, 2) -> 0.72 | M160: =ROUND(ROUND(ROUND(K160/1.2, 2)*L160, 2)*1.2, 2) -> 0 | N160: 4640017896560
B161: Тройник 50 (25/5) (Valfex) СЕРЫЙ | C161: 22206385 | D161: VLF ПП Тройник 50 | E161: шт | H161: 2.2 | K161: =ROUND(ROUND(ROUND(H161/100*(100-I161)/100*(100-J161), 2)/1.2, 2)*1.2, 2) -> 2.2 | M161: =ROUND(ROUND(ROUND(K161/1.2, 2)*L161, 2)*1.2, 2) -> 0 | N161: 4680019385082
B162: Тройник 63 (15/3) (Valfex) СЕРЫЙ | C162: 22206377 | D162: VLF ПП Тройник 63 | E162: шт | H162: 3.56 | K162: =ROUND(ROUND(ROUND(H162/100*(100-I162)/100*(100-J162), 2)/1.2, 2)*1.2, 2) -> 3.56 | M162: =ROUND(ROUND(ROUND(K162/1.2, 2)*L162, 2)*1.2, 2) -> 0 | N162: 4680019385105
B163: Тройник комбинированный с накидной гайкой 25х3/4"х25 (60/15) (Valfex) СЕРЫЙ "ВАЛФ-РУС" | C163: 22211484 | D163: VLF ПП Тройник с н. г25х3/4х25 | E163: шт | H163: 4.11 | K163: =ROUND(ROUND(ROUND(H163/100*(100-I163)/100*(100-J163), 2)/1.2, 2)*1.2, 2) -> 4.12 | M163: =ROUND(ROUND(ROUND(K163/1.2, 2)*L163, 2)*1.2, 2) -> 0 | N163: 4680019385006
B164: Тройник комбинированный с накидной гайкой 32х1"х32 (40/10) (Valfex) СЕРЫЙ "ВАЛФ-РУС" | C164: 22211485 | D164: VLF ПП Тройник с н. г32х1х32 | E164: шт | H164: 6.01 | K164: =ROUND(ROUND(ROUND(H164/100*(100-I164)/100*(100-J164), 2)/1.2, 2)*1.2, 2) -> 6.01 | M164: =ROUND(ROUND(ROUND(K164/1.2, 2)*L164, 2)*1.2, 2) -> 0 | N164: 4680019389509
B165: Тройник переходной с внутренней резьбой 20х1/2"х20 (100/25) (Valfex) СЕРЫЙ | C165: 22203605 | D165: VLF ПП Тройник 20х1/2х20 вн | E165: шт | H165: 1.61 | K165: =ROUND(ROUND(ROUND(H165/100*(100-I165)/100*(100-J165), 2)/1.2, 2)*1.2, 2) -> 1.61 | M165: =ROUND(ROUND(ROUND(K165/1.2, 2)*L165, 2)*1.2, 2) -> 0 | N165: 4640017897208
B166: Тройник переходной с внутренней резьбой 20х3/4"х20 (45/15) (Valfex) СЕРЫЙ | C166: 22203606 | D166: VLF ПП Тройник 20х3/4х20 вн | E166: шт | H166: 2.88 | K166: =ROUND(ROUND(ROUND(H166/100*(100-I166)/100*(100-J166), 2)/1.2, 2)*1.2, 2) -> 2.88 | M166: =ROUND(ROUND(ROUND(K166/1.2, 2)*L166, 2)*1.2, 2) -> 0 | N166: 4680019384481
B167: Тройник переходной с внутренней резьбой 25х1/2"х25 (60/15) (Valfex) СЕРЫЙ | C167: 22203607 | D167: VLF ПП Тройник 25х1/2х25 вн | E167: шт | H167: 1.9 | K167: =ROUND(ROUND(ROUND(H167/100*(100-I167)/100*(100-J167), 2)/1.2, 2)*1.2, 2) -> 1.9 | M167: =ROUND(ROUND(ROUND(K167/1.2, 2)*L167, 2)*1.2, 2) -> 0 | N167: 4640017897222
B168: Тройник переходной с внутренней резьбой 25х3/4"х25 (45/15) (Valfex) СЕРЫЙ | C168: 22203608 | D168: VLF ПП Тройник 25х3/4х25 вн | E168: шт | H168: 2.27 | K168: =ROUND(ROUND(ROUND(H168/100*(100-I168)/100*(100-J168), 2)/1.2, 2)*1.2, 2) -> 2.27 | M168: =ROUND(ROUND(ROUND(K168/1.2, 2)*L168, 2)*1.2, 2) -> 0 | N168: 4640017897925
B169: Тройник переходной с внутренней резьбой 32х1"х32 (30/10) (Valfex) СЕРЫЙ | C169: 22203780 | D169: VLF ПП Тройник 32х1х32 вн | E169: шт | H169: 3.76 | K169: =ROUND(ROUND(ROUND(H169/100*(100-I169)/100*(100-J169), 2)/1.2, 2)*1.2, 2) -> 3.76 | M169: =ROUND(ROUND(ROUND(K169/1.2, 2)*L169, 2)*1.2, 2) -> 0 | N169: 4640017897710
B170: Тройник переходной с внутренней резьбой 32х1/2"х32 (30/10) (Valfex) СЕРЫЙ | C170: 22203781 | D170: VLF ПП Тройник 32х1/2х32 вн | E170: шт | H170: 2.62 | K170: =ROUND(ROUND(ROUND(H170/100*(100-I170)/100*(100-J170), 2)/1.2, 2)*1.2, 2) -> 2.62 | M170: =ROUND(ROUND(ROUND(K170/1.2, 2)*L170, 2)*1.2, 2) -> 0 | N170: 4680019389363
B171: Тройник переходной с внутренней резьбой 32х3/4"х32 (30/10) (Valfex) СЕРЫЙ | C171: 22204518 | D171: VLF ПП Тройник 32х3/4х32 вн | E171: шт | H171: 2.82 | K171: =ROUND(ROUND(ROUND(H171/100*(100-I171)/100*(100-J171), 2)/1.2, 2)*1.2, 2) -> 2.82 | M171: =ROUND(ROUND(ROUND(K171/1.2, 2)*L171, 2)*1.2, 2) -> 0 | N171: 4640017897789
B172: Тройник переходной с наружной резьбой 20х1/2"х20 (100/25) (Valfex) СЕРЫЙ | C172: 22203609 | D172: VLF ПП Тройник 20х1/2х20 нар | E172: шт | H172: 2 | K172: =ROUND(ROUND(ROUND(H172/100*(100-I172)/100*(100-J172), 2)/1.2, 2)*1.2, 2) -> 2 | M172: =ROUND(ROUND(ROUND(K172/1.2, 2)*L172, 2)*1.2, 2) -> 0 | N172: 4640017897840
B173: Тройник переходной с наружной резьбой 20х3/4"х20 (45/15) (Valfex) СЕРЫЙ | C173: 22203610 | D173: VLF ПП Тройник 20х3/4х20 нар | E173: шт | H173: 3.69 | K173: =ROUND(ROUND(ROUND(H173/100*(100-I173)/100*(100-J173), 2)/1.2, 2)*1.2, 2) -> 3.7 | M173: =ROUND(ROUND(ROUND(K173/1.2, 2)*L173, 2)*1.2, 2) -> 0 | N173: 4680019384498
B174: Тройник переходной с наружной резьбой 25х1/2"х25 (60/15) (Valfex) СЕРЫЙ | C174: 22203237 | D174: VLF ПП Тройник 25х1/2х25 нар | E174: шт | H174: 2.31 | K174: =ROUND(ROUND(ROUND(H174/100*(100-I174)/100*(100-J174), 2)/1.2, 2)*1.2, 2) -> 2.32 | M174: =ROUND(ROUND(ROUND(K174/1.2, 2)*L174, 2)*1.2, 2) -> 0 | N174: 4640017897888
B175: Тройник переходной с наружной резьбой 25х3/4"х25 (45/15) (Valfex) СЕРЫЙ | C175: 22203611 | D175: VLF ПП Тройник 25х3/4х25 нар | E175: шт | H175: 3.16 | K175: =ROUND(ROUND(ROUND(H175/100*(100-I175)/100*(100-J175), 2)/1.2, 2)*1.2, 2) -> 3.16 | M175: =ROUND(ROUND(ROUND(K175/1.2, 2)*L175, 2)*1.2, 2) -> 0 | N175: 4640017897246
B176: Тройник переходной с наружной резьбой 32х1"х32 (30/10) (Valfex) СЕРЫЙ | C176: 22203782 | D176: VLF ПП Тройник 32х1х32 нар | E176: шт | H176: 4.52 | K176: =ROUND(ROUND(ROUND(H176/100*(100-I176)/100*(100-J176), 2)/1.2, 2)*1.2, 2) -> 4.52 | M176: =ROUND(ROUND(ROUND(K176/1.2, 2)*L176, 2)*1.2, 2) -> 0 | N176: 4640017897963
B177: Тройник переходной с наружной резьбой 32х1/2"х32 (30/10) (Valfex) СЕРЫЙ | C177: 22204348 | D177: VLF ПП Тройник 32х1/2х32 нар | E177: шт | H177: 2.88 | K177: =ROUND(ROUND(ROUND(H177/100*(100-I177)/100*(100-J177), 2)/1.2, 2)*1.2, 2) -> 2.88 | M177: =ROUND(ROUND(ROUND(K177/1.2, 2)*L177, 2)*1.2, 2) -> 0 | N177: 4680019389394
B178: Тройник переходной с наружной резьбой 32х3/4"х32 (30/10) (Valfex) СЕРЫЙ | C178: 22204520 | D178: VLF ПП Тройник 32х3/4х32 нар | E178: шт | H178: 3.63 | K178: =ROUND(ROUND(ROUND(H178/100*(100-I178)/100*(100-J178), 2)/1.2, 2)*1.2, 2) -> 3.64 | M178: =ROUND(ROUND(ROUND(K178/1.2, 2)*L178, 2)*1.2, 2) -> 0 | N178: 4680019384511
B179: Тройник ПНД компр. переходной с наружной резьбой 20-1/2"-20 (100/25) VALFEX | C179: 22211840 | D179: VLF ПП Тройник ПНД 20-1/2-20 | E179: шт | H179: 1.9 | K179: =ROUND(ROUND(ROUND(H179/100*(100-I179)/100*(100-J179), 2)/1.2, 2)*1.2, 2) -> 1.9 | M179: =ROUND(ROUND(ROUND(K179/1.2, 2)*L179, 2)*1.2, 2) -> 0 | N179: 4680086706674
B180: Тройник редукционный 20/25/20 (200/25) (Valfex) СЕРЫЙ | C180: 22202913 | D180: VLF ПП Тройник 20х25х20 | E180: шт | H180: 0.39 | K180: =ROUND(ROUND(ROUND(H180/100*(100-I180)/100*(100-J180), 2)/1.2, 2)*1.2, 2) -> 0.4 | M180: =ROUND(ROUND(ROUND(K180/1.2, 2)*L180, 2)*1.2, 2) -> 0 | N180: 4680019387390
B181: Тройник редукционный 25/20/20 (200/25) (Valfex) СЕРЫЙ | C181: 22203612 | D181: VLF ПП Тройник 25х20х20 | E181: шт | H181: 0.44 | K181: =ROUND(ROUND(ROUND(H181/100*(100-I181)/100*(100-J181), 2)/1.2, 2)*1.2, 2) -> 0.44 | M181: =ROUND(ROUND(ROUND(K181/1.2, 2)*L181, 2)*1.2, 2) -> 0 | N181: 4680019389547
B182: Тройник редукционный 25/20/25 (200/40) (Valfex) СЕРЫЙ | C182: 22202914 | D182: VLF ПП Тройник 25х20х25 | E182: шт | H182: 0.34 | K182: =ROUND(ROUND(ROUND(H182/100*(100-I182)/100*(100-J182), 2)/1.2, 2)*1.2, 2) -> 0.34 | M182: =ROUND(ROUND(ROUND(K182/1.2, 2)*L182, 2)*1.2, 2) -> 0 | N182: 4640017896751
B183: Тройник редукционный 25/25/20 (200/25) (Valfex) СЕРЫЙ | C183: 22203613 | D183: VLF ПП Тройник 25х25х20 | E183: шт | H183: 0.47 | K183: =ROUND(ROUND(ROUND(H183/100*(100-I183)/100*(100-J183), 2)/1.2, 2)*1.2, 2) -> 0.47 | M183: =ROUND(ROUND(ROUND(K183/1.2, 2)*L183, 2)*1.2, 2) -> 0 | N183: 4640017899523
B184: Тройник редукционный 32/20/20 (125/25) (Valfex) СЕРЫЙ | C184: 22203614 | D184: VLF ПП Тройник 32х20х20 | E184: шт | H184: 0.55 | K184: =ROUND(ROUND(ROUND(H184/100*(100-I184)/100*(100-J184), 2)/1.2, 2)*1.2, 2) -> 0.55 | M184: =ROUND(ROUND(ROUND(K184/1.2, 2)*L184, 2)*1.2, 2) -> 0 | N184: 4680019384535
B185: Тройник редукционный 32/20/25 (125/25) (Valfex) СЕРЫЙ | C185: 22203615 | D185: VLF ПП Тройник 32х20х25 | E185: шт | H185: 0.64 | K185: =ROUND(ROUND(ROUND(H185/100*(100-I185)/100*(100-J185), 2)/1.2, 2)*1.2, 2) -> 0.64 | M185: =ROUND(ROUND(ROUND(K185/1.2, 2)*L185, 2)*1.2, 2) -> 0 | N185: 4680019384559
B186: Тройник редукционный 32/20/32 (100/25) (Valfex) СЕРЫЙ | C186: 22203161 | D186: VLF ПП Тройник 32х20х32 | E186: шт | H186: 0.58 | K186: =ROUND(ROUND(ROUND(H186/100*(100-I186)/100*(100-J186), 2)/1.2, 2)*1.2, 2) -> 0.58 | M186: =ROUND(ROUND(ROUND(K186/1.2, 2)*L186, 2)*1.2, 2) -> 0 | N186: 4640017896775
B187: Тройник редукционный 32/25/20 (125/25) (Valfex) СЕРЫЙ | C187: 22203616 | D187: VLF ПП Тройник 32х25х20 | E187: шт | H187: 0.65 | K187: =ROUND(ROUND(ROUND(H187/100*(100-I187)/100*(100-J187), 2)/1.2, 2)*1.2, 2) -> 0.65 | M187: =ROUND(ROUND(ROUND(K187/1.2, 2)*L187, 2)*1.2, 2) -> 0 | N187: 4680019384573
B188: Тройник редукционный 32/25/25 (125/25) (Valfex) СЕРЫЙ | C188: 22203617 | D188: VLF ПП Тройник 32х25х25 | E188: шт | H188: 0.65 | K188: =ROUND(ROUND(ROUND(H188/100*(100-I188)/100*(100-J188), 2)/1.2, 2)*1.2, 2) -> 0.65 | M188: =ROUND(ROUND(ROUND(K188/1.2, 2)*L188, 2)*1.2, 2) -> 0 | N188: 4680019384597
B189: Тройник редукционный 32/25/32 (100/20) (Valfex) СЕРЫЙ | C189: 22203162 | D189: VLF ПП Тройник 32х25х32 | E189: шт | H189: 0.6 | K189: =ROUND(ROUND(ROUND(H189/100*(100-I189)/100*(100-J189), 2)/1.2, 2)*1.2, 2) -> 0.6 | M189: =ROUND(ROUND(ROUND(K189/1.2, 2)*L189, 2)*1.2, 2) -> 0 | N189: 4640017896836
B190: Тройник редукционный 40/20/40 (60/15) (Valfex) СЕРЫЙ | C190: 22203624 | D190: VLF ПП Тройник 40х20х40 | E190: шт | H190: 1.12 | K190: =ROUND(ROUND(ROUND(H190/100*(100-I190)/100*(100-J190), 2)/1.2, 2)*1.2, 2) -> 1.12 | M190: =ROUND(ROUND(ROUND(K190/1.2, 2)*L190, 2)*1.2, 2) -> 0 | N190: 4680019384610
B191: Тройник редукционный 40/25/40 (60/10) (Valfex) СЕРЫЙ | C191: 22203618 | D191: VLF ПП Тройник 40х25х40 | E191: шт | H191: 1.18 | K191: =ROUND(ROUND(ROUND(H191/100*(100-I191)/100*(100-J191), 2)/1.2, 2)*1.2, 2) -> 1.18 | M191: =ROUND(ROUND(ROUND(K191/1.2, 2)*L191, 2)*1.2, 2) -> 0 | N191: 4680019384634
B192: Тройник редукционный 40/32/40 (50/10) (Valfex) СЕРЫЙ | C192: 22203163 | D192: VLF ПП Тройник 40х32х40 | E192: шт | H192: 1.28 | K192: =ROUND(ROUND(ROUND(H192/100*(100-I192)/100*(100-J192), 2)/1.2, 2)*1.2, 2) -> 1.28 | M192: =ROUND(ROUND(ROUND(K192/1.2, 2)*L192, 2)*1.2, 2) -> 0 | N192: 4680019384658
B193: Тройник редукционный 50/20/50 (40/10) (Valfex) СЕРЫЙ | C193: 22205651 | D193: VLF ПП Тройник 50х20х50 | E193: шт | H193: 1.9 | K193: =ROUND(ROUND(ROUND(H193/100*(100-I193)/100*(100-J193), 2)/1.2, 2)*1.2, 2) -> 1.9 | M193: =ROUND(ROUND(ROUND(K193/1.2, 2)*L193, 2)*1.2, 2) -> 0 | N193: 4680019384672
B194: Тройник редукционный 50/25/50 (40/10) (Valfex) СЕРЫЙ | C194: 22205653 | D194: VLF ПП Тройник 50х25х50 | E194: шт | H194: 2.07 | K194: =ROUND(ROUND(ROUND(H194/100*(100-I194)/100*(100-J194), 2)/1.2, 2)*1.2, 2) -> 2.08 | M194: =ROUND(ROUND(ROUND(K194/1.2, 2)*L194, 2)*1.2, 2) -> 0 | N194: 4680019384696
B195: Тройник редукционный 50/32/50 (35/7) (Valfex) СЕРЫЙ | C195: 22205655 | D195: VLF ПП Тройник 50х32х50 | E195: шт | H195: 2.17 | K195: =ROUND(ROUND(ROUND(H195/100*(100-I195)/100*(100-J195), 2)/1.2, 2)*1.2, 2) -> 2.17 | M195: =ROUND(ROUND(ROUND(K195/1.2, 2)*L195, 2)*1.2, 2) -> 0 | N195: 4680019384726
B196: Тройник редукционный 50/40/50 (35/5) (Valfex) СЕРЫЙ | C196: 22205657 | D196: VLF ПП Тройник 50х40х50 | E196: шт | H196: 2.33 | K196: =ROUND(ROUND(ROUND(H196/100*(100-I196)/100*(100-J196), 2)/1.2, 2)*1.2, 2) -> 2.33 | M196: =ROUND(ROUND(ROUND(K196/1.2, 2)*L196, 2)*1.2, 2) -> 0 | N196: 4680019384764
B197: Тройник редукционный 63/20/63 (25/5) (Valfex) СЕРЫЙ | C197: 22206063 | D197: VLF ПП Тройник 63х20х63 | E197: шт | H197: 2.64 | K197: =ROUND(ROUND(ROUND(H197/100*(100-I197)/100*(100-J197), 2)/1.2, 2)*1.2, 2) -> 2.64 | M197: =ROUND(ROUND(ROUND(K197/1.2, 2)*L197, 2)*1.2, 2) -> 0 | N197: 4680019384788
B198: Тройник редукционный 63/25/63 (25/5) (Valfex) СЕРЫЙ | C198: 22206065 | D198: VLF ПП Тройник 63х25х63 | E198: шт | H198: 2.6 | K198: =ROUND(ROUND(ROUND(H198/100*(100-I198)/100*(100-J198), 2)/1.2, 2)*1.2, 2) -> 2.6 | M198: =ROUND(ROUND(ROUND(K198/1.2, 2)*L198, 2)*1.2, 2) -> 0 | N198: 4680019384801
B199: Тройник редукционный 63/32/63 (25/5) (Valfex) СЕРЫЙ | C199: 22206067 | D199: VLF ПП Тройник 63х32х63 | E199: шт | H199: 2.75 | K199: =ROUND(ROUND(ROUND(H199/100*(100-I199)/100*(100-J199), 2)/1.2, 2)*1.2, 2) -> 2.75 | M199: =ROUND(ROUND(ROUND(K199/1.2, 2)*L199, 2)*1.2, 2) -> 0 | N199: 4680019384825
B200: Тройник редукционный 63/40/63 (24/4) (Valfex) СЕРЫЙ | C200: 22206069 | D200: VLF ПП Тройник 63х40х63 | E200: шт | H200: 3.65 | K200: =ROUND(ROUND(ROUND(H200/100*(100-I200)/100*(100-J200), 2)/1.2, 2)*1.2, 2) -> 3.65 | M200: =ROUND(ROUND(ROUND(K200/1.2, 2)*L200, 2)*1.2, 2) -> 0 | N200: 4680019384849
... 2939 more rows
